Workbook

Sheet Calculator
E2: PIPE CALCULATOR
B4: Size1 | G4: Size2 | L4: Rating | P4: Sch. | Q4: Sch. | U4: Face
B7: OD(mm) | E7: ='General Data'!G40 -> 356 | I7: Pipe Wt empty (kg/m) | P7: ='General Data'!T39 -> 
B8: OD/(2mm | E8: =ROUND(E7/2,1) -> 178 | I8: Pipe Wt water (kg/m) | P8: ='General Data'!T40 -> 
B9: OD(in) | E9: ='General Data'!F39 -> 14 | I9: Wall thk. (mm) | P9: ='Pipe Data'!B47 -> 19.05
B17: A = | C17: ='General Data'!H39 -> 533 | F17: mm | H17: B= | I17: ='General Data'!I39 -> 222 | L17: mm | M17: C= | N17: ='General Data'!K39 -> 279 | Q17: mm | R17: C= | S17: ='Reducing tee'!G223 -> …. | V17: mm | W17: E= | X17: ='General Data'!J39 -> 165 | AA17: mm | AB17: H= | AC17: ='Reducing tee'!M223 -> …. | AF17: mm
M18: M= | N18: ='General Data'!L39 -> 279 | Q18: mm | R18: M= | S18: ='Reducing tee'!H223 -> …. | V18: mm
B27: A = | C27: =Valve!D174 -> 889 | F27: mm | H27: A = | I27: =Valve!J174 -> 889 | L27: mm | M27: A = | N27: =Valve!F174 -> 889 | Q27: mm | R27: D= | S27: =Valve!H174 -> ... | V27: mm | W27: A = | X27: =Valve!N174 -> 889 | AA27: mm | AC27: A = | AD27: =Valve!L174 -> 889 | AG27: mm
G30: B= | I30: =Flanges!D162 -> 412.8 | L30: mm | R30: B= | T30: =Flanges!L162 ->  | W30: mm
G31: L= | I31: =Flanges!E162 -> 165 | L31: mm | R31: L= | T31: =Flanges!M162 ->  | W31: mm
G32: No.of Bolt | J32: =Flanges!F162 -> 20 | R32: No.of Bolt | U32: =Flanges!N162 -> 
G33: Bolt Dia | J33: =Flanges!G162 ->  | L33: in | R33: Bolt Dia | U33: =Flanges!O162 ->  | W33: in | Y33: S= | Z33: =Flanges!J162 -> 69.9 | AB33: mm | AC33: Wt | AD33: =Flanges!K162 ->  | AG33: kg
G34: Bolt Len. | J34: =Flanges!H162 ->  | L34: mm | R34: Bolt Len. | U34: =Flanges!P162 ->  | W34: mm
C35: Weight of Flange | I35: =Flanges!I162 -> 150 | L35: kg | N35: Weight of Flange | T35: =Flanges!Q162 ->  | W35: kg
Y38: S= | Z38: =Flanges!R162 ->  | AB38: mm | AC38: Wt | AD38: =Flanges!S162 ->  | AG38: kg

Sheet General Data
A1: Sl.No. | B1: NPS | C1: rating | D1: Schedule | E1: Face | F1: OD (IN) | G1: OD mm | H1: elbow 90 A | I1: elbow 45 B | J1: Cap E | K1: Tee C | L1: Tee M
A2: 1 | B2: 0.5 | C2: 125 | D2: 5S | E2: RF | F2: 0.84 | G2: 21.3 | H2: 38 | I2: 16 | J2: 25 | K2: 25 | L2: 25
A3: 2 | B3: 0.75 | C3: 150 | D3: 10S | E3: FF | F3: 1.05 | G3: 26.7 | H3: 38 | I3: 19 | J3: 25 | K3: 29 | L3: 29
A4: 3 | B4: 1 | C4: 300 | D4: 40S | F4: 1.32 | G4: 33.4 | H4: 38 | I4: 22 | J4: 38 | K4: 38 | L4: 38
A5: 4 | B5: 1.25 | C5: 600 | D5: 80S | F5: 1.66 | G5: 42.2 | H5: 48 | I5: 25 | J5: 38 | K5: 48 | L5: 48
A6: 5 | B6: 1.5 | C6: 900 | D6: 5 | F6: 1.9 | G6: 48.3 | H6: 57 | I6: 29 | J6: 38 | K6: 57 | L6: 57
A7: 6 | B7: 2 | C7: 1200 | D7: 10 | F7: 2.38 | G7: 60.3 | H7: 76 | I7: 35 | J7: 38 | K7: 64 | L7: 64
A8: 7 | B8: 2.5 | C8: 1500 | D8: 20 | F8: 2.88 | G8: 73 | H8: 95 | I8: 44 | J8: 38 | K8: 76 | L8: 76
A9: 8 | B9: 3 | C9: 2500 | D9: 30 | F9: 3.5 | G9: 88.9 | H9: 114 | I9: 51 | J9: 51 | K9: 86 | L9: 86
A10: 9 | B10: 3.5 | C10: 3000 | D10: STD | F10: 4 | G10: 101.6 | H10: 133 | I10: 57 | J10: 64 | K10: 95 | L10: 95
A11: 10 | B11: 4 | C11: 6000 | D11: 40 | F11: 4.5 | G11: 114.3 | H11: 152 | I11: 64 | J11: 64 | K11: 105 | L11: 105
A12: 11 | B12: 5 | D12: 60 | F12: 5.56 | G12: 141.3 | H12: 190 | I12: 79 | J12: 76 | K12: 124 | L12: 124
A13: 12 | B13: 6 | D13: XS | F13: 6.62 | G13: 168.3 | H13: 229 | I13: 95 | J13: 89 | K13: 143 | L13: 143
A14: 13 | B14: 8 | D14: 80 | F14: 8.62 | G14: 219.1 | H14: 305 | I14: 127 | J14: 102 | K14: 178 | L14: 178
A15: 14 | B15: 10 | D15: 100 | F15: 10.75 | G15: 273 | H15: 381 | I15: 159 | J15: 127 | K15: 216 | L15: 216
A16: 15 | B16: 12 | D16: 120 | F16: 12.75 | G16: 323.8 | H16: 457 | I16: 190 | J16: 152 | K16: 254 | L16: 254
A17: 16 | B17: 14 | D17: 140 | F17: 14 | G17: 355.6 | H17: 533 | I17: 222 | J17: 165 | K17: 279 | L17: 279
A18: 17 | B18: 16 | D18: 160 | F18: 16 | G18: 406.4 | H18: 610 | I18: 254 | J18: 178 | K18: 305 | L18: 305
A19: 18 | B19: 18 | D19: XXS | F19: 18 | G19: 457 | H19: 686 | I19: 286 | J19: 203 | K19: 343 | L19: 343
A20: 19 | B20: 20 | F20: 20 | G20: 508 | H20: 762 | I20: 318 | J20: 229 | K20: 381 | L20: 381
A21: 20 | B21: 22 | F21: 22 | G21: 559 | H21: 838 | I21: 343 | J21: 254 | K21: 419 | L21: 419
A22: 21 | B22: 24 | F22: 24 | G22: 610 | H22: 914 | I22: 381 | J22: 267 | K22: 432 | L22: 432
A23: 22 | B23: 26 | F23: 26 | G23: 660 | H23: 991 | I23: 405 | J23: 267 | K23: 495 | L23: 495
A24: 23 | B24: 28 | F24: 28 | G24: 711 | H24: 1067 | I24: 438 | J24: 267 | K24: 521 | L24: 521
A25: 24 | B25: 30 | F25: 30 | G25: 762 | H25: 1143 | I25: 470 | J25: 267 | K25: 559 | L25: 559
A26: 25 | B26: 32 | F26: 32 | G26: 813 | H26: 1219 | I26: 502 | J26: 267 | K26: 597 | L26: 597
A27: 26 | B27: 34 | F27: 34 | G27: 864 | H27: 1295 | I27: 533 | J27: 267 | K27: 635 | L27: 635
A28: 27 | B28: 36 | F28: 36 | G28: 914 | H28: 1372 | I28: 565 | J28: 267 | K28: 673 | L28: 673
A29: 28 | B29: 38 | F29: 38 | G29: 965 | H29: 1448 | I29: 600 | J29: 305 | K29: 711 | L29: 711
A30: 29 | B30: 40 | F30: 40 | G30: 1016 | H30: 1524 | I30: 632 | J30: 305 | K30: 749 | L30: 749
A31: 30 | B31: 42 | F31: 42 | G31: 1067 | H31: 1600 | I31: 660 | J31: 305 | K31: 762 | L31: 711
A32: 31 | B32: 44 | F32: 44 | G32: 1118 | H32: 1676 | I32: 695 | J32: 343 | K32: 813 | L32: 762
A33: 32 | B33: 46 | F33: 46 | G33: 1168 | H33: 1753 | I33: 727 | J33: 343 | K33: 851 | L33: 800
A34: 33 | B34: 48 | F34: 48 | G34: 1219 | H34: 1829 | I34: 759 | J34: 343 | K34: 889 | L34: 838
A38: Return sl no | B38: 16 | C38: 4 | D38: 13 | E38: 1
A39: Search res | B39: =VLOOKUP(B38,A2:G34,2,TRUE) -> 14 | C39: =VLOOKUP(C38,A2:G34,3,TRUE) -> 600 | D39: =VLOOKUP(D38,A2:D34,4,TRUE) -> 80 | E39: =VLOOKUP(E38,A2:E34,5,FALSE) -> RF | F39: =VLOOKUP(B38,A2:F34,6,TRUE) -> 14 | G39: =VLOOKUP(B38,A2:G34,7,TRUE) -> 355.6 | H39: =VLOOKUP(B38,A2:H34,8,TRUE) -> 533 | I39: =VLOOKUP(B38,A2:I34,9,TRUE) -> 222 | J39: =VLOOKUP(B38,A2:J34,10,TRUE) -> 165 | K39: =VLOOKUP(B38,A2:K34,11,TRUE) -> 279 | L39: =VLOOKUP(B38,A2:L34,12,TRUE) -> 279
A40: Return in calcul | G40: =ROUND(G39,0) -> 356
A41: 1 | B41: 2 | C41: 3 | D41: 4 | E41: 5 | F41: 6 | G41: 7 | H41: 8 | I41: 9 | J41: 10 | K41: 11 | L41: 12
A45: don't touch cell

Sheet Reducing tee
D1: 1st size | E1: 2nd size | G1: TEE C | H1: TEE M | J1: 1st size | K1: 2nd size | M1: RED H
A2: 1 | B2: 0.25 | C2: 1 | D2: 0.5 | E2: 0.25 | F2: =D2&E2 -> 0.50.25 | G2: 25 | H2: 25 | J2: 0.75 | K2: 0.375 | L2: =J2&K2 -> 0.750.375 | M2: 38
A3: 2 | B3: 0.375 | C3: 2 | D3: 0.5 | E3: 0.375 | F3: 0.50.375 | G3: 25 | H3: 25 | J3: 0.75 | K3: 0.5 | L3: 0.750.5 | M3: 38
A4: 3 | B4: 0.5 | C4: 3 | D4: 0.75 | E4: 0.375 | F4: 0.750.375 | G4: 29 | H4: 29 | J4: 1 | K4: 0.5 | L4: 10.5 | M4: 51
A5: 4 | B5: 0.75 | C5: 4 | D5: 0.75 | E5: 0.5 | F5: 0.750.5 | G5: 29 | H5: 29 | J5: 1 | K5: 0.75 | L5: 10.75 | M5: 51
A6: 5 | B6: 1 | C6: 5 | D6: 1 | E6: 0.5 | F6: 10.5 | G6: 38 | H6: 38 | J6: 1.25 | K6: 0.5 | L6: 1.250.5 | M6: 51
A7: 6 | B7: 1.25 | C7: 6 | D7: 1 | E7: 0.75 | F7: 10.75 | G7: 38 | H7: 38 | J7: 1.25 | K7: 0.75 | L7: 1.250.75 | M7: 51
A8: 7 | B8: 1.5 | C8: 7 | D8: 1.25 | E8: 0.5 | F8: 1.250.5 | G8: 48 | H8: 48 | J8: 1.25 | K8: 1 | L8: 1.251 | M8: 51
A9: 8 | B9: 2 | C9: 8 | D9: 1.25 | E9: 0.75 | F9: 1.250.75 | G9: 48 | H9: 48 | J9: 1.5 | K9: 0.5 | L9: 1.50.5 | M9: 64
A10: 9 | B10: 2.5 | C10: 9 | D10: 1.25 | E10: 1 | F10: 1.251 | G10: 48 | H10: 48 | J10: 1.5 | K10: 0.75 | L10: 1.50.75 | M10: 64
A11: 10 | B11: 3 | C11: 10 | D11: 1.5 | E11: 0.5 | F11: 1.50.5 | G11: 57 | H11: 57 | J11: 1.5 | K11: 1 | L11: 1.51 | M11: 64
A12: 11 | B12: 3.5 | C12: 11 | D12: 1.5 | E12: 0.75 | F12: 1.50.75 | G12: 57 | H12: 57 | J12: 1.5 | K12: 1.25 | L12: 1.51.25 | M12: 64
A13: 12 | B13: 4 | C13: 12 | D13: 1.5 | E13: 1 | F13: 1.51 | G13: 57 | H13: 57 | J13: 2 | K13: 0.75 | L13: 20.75 | M13: 76
A14: 13 | B14: 5 | C14: 13 | D14: 1.5 | E14: 1.25 | F14: 1.51.25 | G14: 57 | H14: 57 | J14: 2 | K14: 1 | L14: 21 | M14: 76
A15: 14 | B15: 6 | C15: 14 | D15: 2 | E15: 0.75 | F15: 20.75 | G15: 64 | H15: 44 | J15: 2 | K15: 1.25 | L15: 21.25 | M15: 76
A16: 15 | B16: 8 | C16: 15 | D16: 2 | E16: 1 | F16: 21 | G16: 64 | H16: 51 | J16: 2 | K16: 1.5 | L16: 21.5 | M16: 76
A17: 16 | B17: 10 | C17: 16 | D17: 2 | E17: 1.25 | F17: 21.25 | G17: 64 | H17: 57 | J17: 2.5 | K17: 1 | L17: 2.51 | M17: 89
A18: 17 | B18: 12 | C18: 17 | D18: 2 | E18: 1.5 | F18: 21.5 | G18: 64 | H18: 60 | J18: 2.5 | K18: 1.25 | L18: 2.51.25 | M18: 89
A19: 18 | B19: 14 | C19: 18 | D19: 2.5 | E19: 1 | F19: 2.51 | G19: 76 | H19: 57 | J19: 2.5 | K19: 1.5 | L19: 2.51.5 | M19: 89
A20: 19 | B20: 16 | C20: 19 | D20: 2.5 | E20: 1.25 | F20: 2.51.25 | G20: 76 | H20: 64 | J20: 2.5 | K20: 2 | L20: 2.52 | M20: 89
A21: 20 | B21: 18 | C21: 20 | D21: 2.5 | E21: 1.5 | F21: 2.51.5 | G21: 76 | H21: 67 | J21: 3 | K21: 1.25 | L21: 31.25 | M21: 89
A22: 21 | B22: 20 | C22: 21 | D22: 2.5 | E22: 2 | F22: 2.52 | G22: 76 | H22: 70 | J22: 3 | K22: 1.5 | L22: 31.5 | M22: 89
A23: 22 | B23: 22 | C23: 22 | D23: 3 | E23: 1.25 | F23: 31.25 | G23: 86 | H23: 70 | J23: 3 | K23: 2 | L23: 32 | M23: 89
A24: 23 | B24: 24 | C24: 23 | D24: 3 | E24: 1.5 | F24: 31.5 | G24: 86 | H24: 73 | J24: 3 | K24: 2.5 | L24: 32.5 | M24: 89
A25: 24 | B25: 26 | C25: 24 | D25: 3 | E25: 2 | F25: 32 | G25: 86 | H25: 76 | J25: 3.5 | K25: 1.25 | L25: 3.51.25 | M25: 102
A26: 25 | B26: 28 | C26: 25 | D26: 3 | E26: 2.5 | F26: 32.5 | G26: 86 | H26: 83 | J26: 3.5 | K26: 1.5 | L26: 3.51.5 | M26: 102
A27: 26 | B27: 30 | C27: 26 | D27: 3.5 | E27: 1.5 | F27: 3.51.5 | G27: 95 | H27: 79 | J27: 3.5 | K27: 2 | L27: 3.52 | M27: 102
A28: 27 | B28: 32 | C28: 27 | D28: 3.5 | E28: 2 | F28: 3.52 | G28: 95 | H28: 83 | J28: 3.5 | K28: 2.5 | L28: 3.52.5 | M28: 102
A29: 28 | B29: 34 | C29: 28 | D29: 3.5 | E29: 2.5 | F29: 3.52.5 | G29: 95 | H29: 89 | J29: 3.5 | K29: 3 | L29: 3.53 | M29: 102
A30: 29 | B30: 36 | C30: 29 | D30: 3.5 | E30: 3 | F30: 3.53 | G30: 95 | H30: 92 | J30: 4 | K30: 1.5 | L30: 41.5 | M30: 102
A31: 30 | B31: 38 | C31: 30 | D31: 4 | E31: 1.5 | F31: 41.5 | G31: 105 | H31: 86 | J31: 4 | K31: 2 | L31: 42 | M31: 102
A32: 31 | B32: 40 | C32: 31 | D32: 4 | E32: 2 | F32: 42 | G32: 105 | H32: 89 | J32: 4 | K32: 2.5 | L32: 42.5 | M32: 102
A33: 32 | B33: 42 | C33: 32 | D33: 4 | E33: 2.5 | F33: 42.5 | G33: 105 | H33: 95 | J33: 4 | K33: 3 | L33: 43 | M33: 102
A34: 33 | B34: 44 | C34: 33 | D34: 4 | E34: 3 | F34: 43 | G34: 105 | H34: 98 | J34: 4 | K34: 3.5 | L34: 43.5 | M34: 102
A35: 34 | B35: 46 | C35: 34 | D35: 4 | E35: 3.5 | F35: 43.5 | G35: 105 | H35: 102 | J35: 5 | K35: 2 | L35: 52 | M35: 127
C36: 35 | D36: 5 | E36: 2 | F36: 52 | G36: 124 | H36: 105 | J36: 5 | K36: 2.5 | L36: 52.5 | M36: 127
C37: 36 | D37: 5 | E37: 2.5 | F37: 52.5 | G37: 124 | H37: 108 | J37: 5 | K37: 3 | L37: 53 | M37: 127
C38: 37 | D38: 5 | E38: 3 | F38: 53 | G38: 124 | H38: 111 | J38: 5 | K38: 3.5 | L38: 53.5 | M38: 127
C39: 38 | D39: 5 | E39: 3.5 | F39: 53.5 | G39: 124 | H39: 114 | J39: 5 | K39: 4 | L39: 54 | M39: 127
C40: 39 | D40: 5 | E40: 4 | F40: 54 | G40: 125 | H40: 117 | J40: 6 | K40: 2.5 | L40: 62.5 | M40: 140
C41: 40 | D41: 6 | E41: 2.5 | F41: 62.5 | G41: 143 | H41: 121 | J41: 6 | K41: 3 | L41: 63 | M41: 140
C42: 41 | D42: 6 | E42: 3 | F42: 63 | G42: 143 | H42: 124 | J42: 6 | K42: 3.5 | L42: 63.5 | M42: 140
C43: 42 | D43: 6 | E43: 3.5 | F43: 63.5 | G43: 143 | H43: 127 | J43: 6 | K43: 4 | L43: 64 | M43: 140
C44: 43 | D44: 6 | E44: 4 | F44: 64 | G44: 143 | H44: 130 | J44: 6 | K44: 5 | L44: 65 | M44: 140
C45: 44 | D45: 6 | E45: 5 | F45: 65 | G45: 143 | H45: 137 | J45: 8 | K45: 3.5 | L45: 83.5 | M45: 152
C46: 45 | D46: 8 | E46: 3.5 | F46: 83.5 | G46: 178 | H46: 152 | J46: 8 | K46: 4 | L46: 84 | M46: 152
C47: 46 | D47: 8 | E47: 4 | F47: 84 | G47: 178 | H47: 156 | J47: 8 | K47: 5 | L47: 85 | M47: 152
C48: 47 | D48: 8 | E48: 5 | F48: 85 | G48: 178 | H48: 162 | J48: 8 | K48: 6 | L48: 86 | M48: 152
C49: 48 | D49: 8 | E49: 6 | F49: 86 | G49: 178 | H49: 168 | J49: 10 | K49: 4 | L49: 104 | M49: 178
C50: 49 | D50: 10 | E50: 4 | F50: 104 | G50: 216 | H50: 184 | J50: 10 | K50: 5 | L50: 105 | M50: 178
C51: 50 | D51: 10 | E51: 5 | F51: 105 | G51: 216 | H51: 191 | J51: 10 | K51: 6 | L51: 106 | M51: 178
C52: 51 | D52: 10 | E52: 6 | F52: 106 | G52: 216 | H52: 194 | J52: 10 | K52: 8 | L52: 108 | M52: 178
C53: 52 | D53: 10 | E53: 8 | F53: 108 | G53: 216 | H53: 203 | J53: 12 | K53: 5 | L53: 125 | M53: 203
C54: 53 | D54: 12 | E54: 5 | F54: 125 | G54: 254 | H54: 216 | J54: 12 | K54: 6 | L54: 126 | M54: 203
C55: 54 | D55: 12 | E55: 6 | F55: 126 | G55: 254 | H55: 219 | J55: 12 | K55: 8 | L55: 128 | M55: 203
C56: 55 | D56: 12 | E56: 8 | F56: 128 | G56: 254 | H56: 229 | J56: 12 | K56: 10 | L56: 1210 | M56: 203
C57: 56 | D57: 12 | E57: 10 | F57: 1210 | G57: 254 | H57: 241 | J57: 14 | K57: 6 | L57: 146 | M57: 330
C58: 57 | D58: 14 | E58: 6 | F58: 146 | G58: 279 | H58: 238 | J58: 14 | K58: 8 | L58: 148 | M58: 330
C59: 58 | D59: 14 | E59: 8 | F59: 148 | G59: 279 | H59: 248 | J59: 14 | K59: 10 | L59: 1410 | M59: 330
C60: 59 | D60: 14 | E60: 10 | F60: 1410 | G60: 279 | H60: 257 | J60: 14 | K60: 12 | L60: 1412 | M60: 330
C61: 60 | D61: 14 | E61: 12 | F61: 1412 | G61: 279 | H61: 270 | J61: 16 | K61: 8 | L61: 168 | M61: 356
C62: 61 | D62: 16 | E62: 6 | F62: 166 | G62: 305 | H62: 264 | J62: 16 | K62: 10 | L62: 1610 | M62: 356
C63: 62 | D63: 16 | E63: 8 | F63: 168 | G63: 305 | H63: 273 | J63: 16 | K63: 12 | L63: 1612 | M63: 356
C64: 63 | D64: 16 | E64: 10 | F64: 1610 | G64: 305 | H64: 283 | J64: 16 | K64: 14 | L64: 1614 | M64: 356
C65: 64 | D65: 16 | E65: 12 | F65: 1612 | G65: 305 | H65: 295 | J65: 18 | K65: 10 | L65: 1810 | M65: 381
C66: 65 | D66: 16 | E66: 14 | F66: 1614 | G66: 305 | H66: 305 | J66: 18 | K66: 12 | L66: 1812 | M66: 381
C67: 66 | D67: 18 | E67: 8 | F67: 188 | G67: 343 | H67: 298 | J67: 18 | K67: 14 | L67: 1814 | M67: 381
C68: 67 | D68: 18 | E68: 10 | F68: 1810 | G68: 343 | H68: 308 | J68: 18 | K68: 16 | L68: 1816 | M68: 381
C69: 68 | D69: 18 | E69: 12 | F69: 1812 | G69: 343 | H69: 321 | J69: 20 | K69: 12 | L69: 2012 | M69: 508
C70: 69 | D70: 18 | E70: 14 | F70: 1814 | G70: 343 | H70: 330 | J70: 20 | K70: 14 | L70: 2014 | M70: 508
C71: 70 | D71: 18 | E71: 16 | F71: 1816 | G71: 343 | H71: 330 | J71: 20 | K71: 16 | L71: 2016 | M71: 508
C72: 71 | D72: 20 | E72: 8 | F72: 208 | G72: 381 | H72: 324 | J72: 20 | K72: 18 | L72: 2018 | M72: 508
C73: 72 | D73: 20 | E73: 10 | F73: 2010 | G73: 381 | H73: 333 | J73: 22 | K73: 14 | L73: 2214 | M73: 508
C74: 73 | D74: 20 | E74: 12 | F74: 2012 | G74: 381 | H74: 346 | J74: 22 | K74: 16 | L74: 2216 | M74: 508
C75: 74 | D75: 20 | E75: 14 | F75: 2014 | G75: 381 | H75: 356 | J75: 22 | K75: 18 | L75: 2218 | M75: 508
C76: 75 | D76: 20 | E76: 16 | F76: 2016 | G76: 381 | H76: 356 | J76: 22 | K76: 20 | L76: 2220 | M76: 508
C77: 76 | D77: 20 | E77: 18 | F77: 2018 | G77: 381 | H77: 368 | J77: 24 | K77: 16 | L77: 2416 | M77: 508
C78: 77 | D78: 22 | E78: 10 | F78: 2210 | G78: 419 | H78: 359 | J78: 24 | K78: 18 | L78: 2418 | M78: 508
C79: 78 | D79: 22 | E79: 12 | F79: 2212 | G79: 419 | H79: 371 | J79: 24 | K79: 20 | L79: 2420 | M79: 508
C80: 79 | D80: 22 | E80: 14 | F80: 2214 | G80: 419 | H80: 381 | J80: 24 | K80: 22 | L80: 2422 | M80: 508
C81: 80 | D81: 22 | E81: 16 | F81: 2216 | G81: 419 | H81: 381 | J81: 26 | K81: 18 | L81: 2618 | M81: 610
C82: 81 | D82: 22 | E82: 18 | F82: 2218 | G82: 419 | H82: 394 | J82: 26 | K82: 20 | L82: 2620 | M82: 610
C83: 82 | D83: 22 | E83: 20 | F83: 2220 | G83: 419 | H83: 406 | J83: 26 | K83: 22 | L83: 2622 | M83: 610
C84: 83 | D84: 24 | E84: 10 | F84: 2410 | G84: 432 | H84: 384 | J84: 26 | K84: 24 | L84: 2624 | M84: 610
C85: 84 | D85: 24 | E85: 12 | F85: 2412 | G85: 432 | H85: 397 | J85: 28 | K85: 20 | L85: 2820 | M85: 610
C86: 85 | D86: 24 | E86: 14 | F86: 2414 | G86: 432 | H86: 406 | J86: 28 | K86: 22 | L86: 2822 | M86: 610
C87: 86 | D87: 24 | E87: 16 | F87: 2416 | G87: 432 | H87: 406 | J87: 28 | K87: 24 | L87: 2824 | M87: 610
C88: 87 | D88: 24 | E88: 18 | F88: 2418 | G88: 432 | H88: 419 | J88: 28 | K88: 26 | L88: 2826 | M88: 610
C89: 88 | D89: 24 | E89: 20 | F89: 2420 | G89: 432 | H89: 432 | J89: 30 | K89: 22 | L89: 3022 | M89: 610
C90: 89 | D90: 24 | E90: 22 | F90: 2422 | G90: 432 | H90: 432 | J90: 30 | K90: 24 | L90: 3024 | M90: 610
C91: 90 | D91: 26 | E91: 12 | F91: 2612 | G91: 495 | H91: 422 | J91: 30 | K91: 26 | L91: 3026 | M91: 610
C92: 91 | D92: 26 | E92: 14 | F92: 2614 | G92: 495 | H92: 432 | J92: 30 | K92: 28 | L92: 3028 | M92: 610
C93: 92 | D93: 26 | E93: 16 | F93: 2616 | G93: 495 | H93: 432 | J93: 32 | K93: 24 | L93: 3224 | M93: 610
C94: 93 | D94: 26 | E94: 18 | F94: 2618 | G94: 495 | H94: 444 | J94: 32 | K94: 26 | L94: 3226 | M94: 610
C95: 94 | D95: 26 | E95: 20 | F95: 2620 | G95: 495 | H95: 457 | J95: 32 | K95: 28 | L95: 3228 | M95: 610
C96: 95 | D96: 26 | E96: 22 | F96: 2622 | G96: 495 | H96: 470 | J96: 32 | K96: 30 | L96: 3230 | M96: 610
C97: 96 | D97: 26 | E97: 24 | F97: 2624 | G97: 495 | H97: 483 | J97: 34 | K97: 26 | L97: 3426 | M97: 610
C98: 97 | D98: 28 | E98: 12 | F98: 2812 | G98: 521 | H98: 448 | J98: 34 | K98: 28 | L98: 3428 | M98: 610
C99: 98 | D99: 28 | E99: 14 | F99: 2814 | G99: 521 | H99: 457 | J99: 34 | K99: 30 | L99: 3430 | M99: 610
C100: 99 | D100: 28 | E100: 16 | F100: 2816 | G100: 521 | H100: 457 | J100: 34 | K100: 32 | L100: 3432 | M100: 610
C101: 100 | D101: 28 | E101: 18 | F101: 2818 | G101: 521 | H101: 470 | J101: 36 | K101: 26 | L101: 3626 | M101: 610
C102: 101 | D102: 28 | E102: 20 | F102: 2820 | G102: 521 | H102: 483 | J102: 36 | K102: 28 | L102: 3628 | M102: 610
C103: 102 | D103: 28 | E103: 22 | F103: 2822 | G103: 521 | H103: 495 | J103: 36 | K103: 30 | L103: 3630 | M103: 610
C104: 103 | D104: 28 | E104: 24 | F104: 2824 | G104: 521 | H104: 508 | J104: 36 | K104: 32 | L104: 3632 | M104: 610
C105: 104 | D105: 28 | E105: 26 | F105: 2826 | G105: 521 | H105: 521 | J105: 36 | K105: 34 | L105: 3634 | M105: 610
C106: 105 | D106: 30 | E106: 10 | F106: 3010 | G106: 559 | H106: 460 | J106: 38 | K106: 26 | L106: 3826 | M106: 610
C107: 106 | D107: 30 | E107: 12 | F107: 3012 | G107: 559 | H107: 473 | J107: 38 | K107: 28 | L107: 3828 | M107: 610
C108: 107 | D108: 30 | E108: 14 | F108: 3014 | G108: 559 | H108: 483 | J108: 38 | K108: 30 | L108: 3830 | M108: 610
C109: 108 | D109: 30 | E109: 16 | F109: 3016 | G109: 559 | H109: 483 | J109: 38 | K109: 32 | L109: 3832 | M109: 610
C110: 109 | D110: 30 | E110: 18 | F110: 3018 | G110: 559 | H110: 495 | J110: 38 | K110: 34 | L110: 3834 | M110: 610
C111: 110 | D111: 30 | E111: 20 | F111: 3020 | G111: 559 | H111: 508 | J111: 38 | K111: 36 | L111: 3836 | M111: 610
C112: 111 | D112: 30 | E112: 22 | F112: 3022 | G112: 559 | H112: 521 | J112: 40 | K112: 30 | L112: 4030 | M112: 610
C113: 112 | D113: 30 | E113: 24 | F113: 3024 | G113: 559 | H113: 533 | J113: 40 | K113: 32 | L113: 4032 | M113: 610
C114: 113 | D114: 30 | E114: 26 | F114: 3026 | G114: 559 | H114: 546 | J114: 40 | K114: 34 | L114: 4034 | M114: 610
C115: 114 | D115: 30 | E115: 28 | F115: 3028 | G115: 559 | H115: 546 | J115: 40 | K115: 36 | L115: 4036 | M115: 610
C116: 115 | D116: 32 | E116: 14 | F116: 3214 | G116: 597 | H116: 508 | J116: 40 | K116: 38 | L116: 4038 | M116: 610
C117: 116 | D117: 32 | E117: 16 | F117: 3216 | G117: 597 | H117: 508 | J117: 42 | K117: 30 | L117: 4230 | M117: 610
C118: 117 | D118: 32 | E118: 18 | F118: 3218 | G118: 597 | H118: 521 | J118: 42 | K118: 32 | L118: 4232 | M118: 610
C119: 118 | D119: 32 | E119: 20 | F119: 3220 | G119: 597 | H119: 533 | J119: 42 | K119: 34 | L119: 4234 | M119: 610
C120: 119 | D120: 32 | E120: 22 | F120: 3222 | G120: 597 | H120: 546 | J120: 42 | K120: 36 | L120: 4236 | M120: 610
C121: 120 | D121: 32 | E121: 24 | F121: 3224 | G121: 597 | H121: 559 | J121: 42 | K121: 38 | L121: 4238 | M121: 610
C122: 121 | D122: 32 | E122: 26 | F122: 3226 | G122: 597 | H122: 572 | J122: 42 | K122: 40 | L122: 4240 | M122: 610
C123: 122 | D123: 32 | E123: 28 | F123: 3228 | G123: 597 | H123: 572 | J123: 44 | K123: 36 | L123: 4436 | M123: 610
C124: 123 | D124: 32 | E124: 30 | F124: 3230 | G124: 597 | H124: 584 | J124: 44 | K124: 38 | L124: 4438 | M124: 610
C125: 124 | D125: 34 | E125: 16 | F125: 3416 | G125: 635 | H125: 533 | J125: 44 | K125: 40 | L125: 4440 | M125: 610
C126: 125 | D126: 34 | E126: 18 | F126: 3418 | G126: 635 | H126: 546 | J126: 44 | K126: 42 | L126: 4442 | M126: 610
C127: 126 | D127: 34 | E127: 20 | F127: 3420 | G127: 635 | H127: 559 | J127: 46 | K127: 38 | L127: 4638 | M127: 711
C128: 127 | D128: 34 | E128: 22 | F128: 3422 | G128: 635 | H128: 572 | J128: 46 | K128: 40 | L128: 4640 | M128: 711
C129: 128 | D129: 34 | E129: 24 | F129: 3424 | G129: 635 | H129: 584 | J129: 46 | K129: 42 | L129: 4642 | M129: 711
C130: 129 | D130: 34 | E130: 26 | F130: 3426 | G130: 635 | H130: 597 | J130: 46 | K130: 44 | L130: 4644 | M130: 711
C131: 130 | D131: 34 | E131: 28 | F131: 3428 | G131: 635 | H131: 597 | J131: 48 | K131: 40 | L131: 4840 | M131: 711
C132: 131 | D132: 34 | E132: 30 | F132: 3430 | G132: 635 | H132: 610 | J132: 48 | K132: 42 | L132: 4842 | M132: 711
C133: 132 | D133: 34 | E133: 32 | F133: 3432 | G133: 635 | H133: 622 | J133: 48 | K133: 44 | L133: 4844 | M133: 711
C134: 133 | D134: 36 | E134: 16 | F134: 3616 | G134: 673 | H134: 559 | J134: 48 | K134: 46 | L134: 4846 | M134: 711
C135: 134 | D135: 36 | E135: 18 | F135: 3618 | G135: 673 | H135: 572
C136: 135 | D136: 36 | E136: 20 | F136: 3620 | G136: 673 | H136: 584
C137: 136 | D137: 36 | E137: 22 | F137: 3622 | G137: 673 | H137: 597
C138: 137 | D138: 36 | E138: 24 | F138: 3624 | G138: 673 | H138: 610
C139: 138 | D139: 36 | E139: 26 | F139: 3626 | G139: 673 | H139: 622
C140: 139 | D140: 36 | E140: 28 | F140: 3628 | G140: 673 | H140: 622
C141: 140 | D141: 36 | E141: 30 | F141: 3630 | G141: 673 | H141: 635
C142: 141 | D142: 36 | E142: 32 | F142: 3632 | G142: 673 | H142: 648
C143: 142 | D143: 36 | E143: 34 | F143: 3634 | G143: 673 | H143: 660
C144: 143 | D144: 38 | E144: 18 | F144: 3818 | G144: 711 | H144: 597
C145: 144 | D145: 38 | E145: 20 | F145: 3820 | G145: 711 | H145: 610
C146: 145 | D146: 38 | E146: 22 | F146: 3822 | G146: 711 | H146: 622
C147: 146 | D147: 38 | E147: 24 | F147: 3824 | G147: 711 | H147: 635
C148: 147 | D148: 38 | E148: 26 | F148: 3826 | G148: 711 | H148: 648
C149: 148 | D149: 38 | E149: 28 | F149: 3828 | G149: 711 | H149: 648
C150: 149 | D150: 38 | E150: 30 | F150: 3830 | G150: 711 | H150: 673
C151: 150 | D151: 38 | E151: 32 | F151: 3832 | G151: 711 | H151: 686
C152: 151 | D152: 38 | E152: 34 | F152: 3834 | G152: 711 | H152: 698
C153: 152 | D153: 38 | E153: 36 | F153: 3836 | G153: 711 | H153: 711
C154: 153 | D154: 40 | E154: 18 | F154: 4018 | G154: 749 | H154: 622
C155: 154 | D155: 40 | E155: 20 | F155: 4020 | G155: 749 | H155: 635
C156: 155 | D156: 40 | E156: 22 | F156: 4022 | G156: 749 | H156: 648
C157: 156 | D157: 40 | E157: 24 | F157: 4024 | G157: 749 | H157: 660
C158: 157 | D158: 40 | E158: 26 | F158: 4026 | G158: 749 | H158: 673
C159: 158 | D159: 40 | E159: 28 | F159: 4028 | G159: 749 | H159: 673
C160: 159 | D160: 40 | E160: 30 | F160: 4030 | G160: 749 | H160: 698
C161: 160 | D161: 40 | E161: 32 | F161: 4032 | G161: 749 | H161: 711
C162: 161 | D162: 40 | E162: 34 | F162: 4034 | G162: 749 | H162: 724
C163: 162 | D163: 40 | E163: 36 | F163: 4036 | G163: 749 | H163: 737
C164: 163 | D164: 40 | E164: 38 | F164: 4038 | G164: 749 | H164: 749
C165: 164 | D165: 42 | E165: 16 | F165: 4216 | G165: 762 | H165: 635
C166: 165 | D166: 42 | E166: 18 | F166: 4218 | G166: 762 | H166: 648
C167: 166 | D167: 42 | E167: 20 | F167: 4220 | G167: 762 | H167: 660
C168: 167 | D168: 42 | E168: 22 | F168: 4222 | G168: 762 | H168: 660
C169: 168 | D169: 42 | E169: 24 | F169: 4224 | G169: 762 | H169: 660
C170: 169 | D170: 42 | E170: 26 | F170: 4226 | G170: 762 | H170: 698
C171: 170 | D171: 42 | E171: 28 | F171: 4228 | G171: 762 | H171: 698
C172: 171 | D172: 42 | E172: 30 | F172: 4230 | G172: 762 | H172: 711
C173: 172 | D173: 42 | E173: 32 | F173: 4232 | G173: 762 | H173: 711
C174: 173 | D174: 42 | E174: 34 | F174: 4234 | G174: 762 | H174: 711
C175: 174 | D175: 42 | E175: 36 | F175: 4236 | G175: 762 | H175: 711
C176: 175 | D176: 42 | E176: 38 | F176: 4238 | G176: 762 | H176: 711
C177: 176 | D177: 42 | E177: 40 | F177: 4240 | G177: 762 | H177: 711
C178: 177 | D178: 44 | E178: 22 | F178: 4422 | G178: 813 | H178: 686
C179: 178 | D179: 44 | E179: 24 | F179: 4424 | G179: 813 | H179: 698
C180: 179 | D180: 44 | E180: 26 | F180: 4426 | G180: 813 | H180: 698
C181: 180 | D181: 44 | E181: 28 | F181: 4428 | G181: 813 | H181: 698
C182: 181 | D182: 44 | E182: 30 | F182: 4430 | G182: 813 | H182: 711
C183: 182 | D183: 44 | E183: 32 | F183: 4432 | G183: 813 | H183: 711
C184: 183 | D184: 44 | E184: 34 | F184: 4434 | G184: 813 | H184: 724
C185: 184 | D185: 44 | E185: 36 | F185: 4436 | G185: 813 | H185: 724
C186: 185 | D186: 44 | E186: 38 | F186: 4438 | G186: 813 | H186: 737
C187: 186 | D187: 44 | E187: 40 | F187: 4440 | G187: 813 | H187: 749
C188: 187 | D188: 44 | E188: 42 | F188: 4442 | G188: 813 | H188: 762
C189: 188 | D189: 44 | E189: 20 | F189: 4420 | G189: 813 | H189: 686
C190: 189 | D190: 46 | E190: 22 | F190: 4622 | G190: 851 | H190: 724
C191: 190 | D191: 46 | E191: 24 | F191: 4624 | G191: 851 | H191: 724
C192: 191 | D192: 46 | E192: 26 | F192: 4626 | G192: 851 | H192: 737
C193: 192 | D193: 46 | E193: 28 | F193: 4628 | G193: 851 | H193: 737
C194: 193 | D194: 46 | E194: 30 | F194: 4630 | G194: 851 | H194: 737
C195: 194 | D195: 46 | E195: 32 | F195: 4632 | G195: 851 | H195: 749
C196: 195 | D196: 46 | E196: 34 | F196: 4634 | G196: 851 | H196: 749
C197: 196 | D197: 46 | E197: 36 | F197: 4636 | G197: 851 | H197: 762
C198: 197 | D198: 46 | E198: 38 | F198: 4638 | G198: 851 | H198: 762
C199: 198 | D199: 46 | E199: 40 | F199: 4640 | G199: 851 | H199: 775
C200: 199 | D200: 46 | E200: 42 | F200: 4642 | G200: 851 | H200: 787
... 21 more rows

Sheet Valve
A1: Size | B1: Rating | D1: Gate | F1: Check | H1: Check D | J1: Globe | L1: Plug | N1: Ball
A2: 0.25 | B2: 125 | C2: =B2&A2 -> 1250.25 | D2: ... | F2: . . . | H2: ... | J2: . . . | L2: . | N2: ...
A3: 0.375 | B3: 125 | C3: 1250.375 | D3: . . . | F3: . . . | H3: ... | J3: . . . | L3: . | N3: . . .
A4: 0.5 | B4: 125 | C4: 1250.5 | D4: .., | F4: ... | H4: ... | J4: ... | L4: ... | N4: ..,
A5: 0.75 | B5: 125 | C5: 1250.75 | D5: ... | F5: . . . | H5: ... | J5: . . . | L5: ... | N5: ...
A6: 1 | B6: 125 | C6: 1251 | D6: . . . | F6: ... | H6: ... | J6: ... | L6: 140 | N6: . . .
A7: 1.25 | B7: 125 | C7: 1251.25 | D7: . . . | F7: . . . | H7: ... | J7: . . . | L7: ... | N7: . . .
A8: 1.5 | B8: 125 | C8: 1251.5 | D8: . . . | F8: . . . | H8: ... | J8: . . . | L8: 165 | N8: . . .
A9: 2 | B9: 125 | C9: 1252 | D9: 178 | F9: 203 | H9: ... | J9: 203 | L9: 190 | N9: 178
A10: 2.5 | B10: 125 | C10: 1252.5 | D10: 190 | F10: 216 | H10: ... | J10: 216 | L10: 210 | N10: 190
A11: 3 | B11: 125 | C11: 1253 | D11: 203 | F11: 241 | H11: ... | J11: 241 | L11: 229 | N11: 203
A12: 4 | B12: 125 | C12: 1254 | D12: 229 | F12: 292 | H12: ... | J12: 292 | L12: 229 | N12: 229
A13: 5 | B13: 125 | C13: 1255 | D13: 254 | F13: 330 | H13: ... | J13: 330 | L13: 356 | N13: 254
A14: 6 | B14: 125 | C14: 1256 | D14: 267 | F14: 356 | H14: ... | J14: 356 | L14: 394 | N14: 267
A15: 8 | B15: 125 | C15: 1258 | D15: 292 | F15: 495 | H15: ... | J15: 495 | L15: 457 | N15: 292
A16: 10 | B16: 125 | C16: 12510 | D16: 330 | F16: 622 | H16: ... | J16: 622 | L16: 533 | N16: 330
A17: 12 | B17: 125 | C17: 12512 | D17: 356 | F17: 698 | H17: ... | J17: 698 | L17: 610 | N17: 356
A18: 14 | B18: 125 | C18: 12514 | D18: 381 | F18: 787 | H18: ... | J18: 787 | L18: 686 | N18: 381
A19: 16 | B19: 125 | C19: 12516 | D19: 406 | F19: 914 | H19: ... | J19: 914 | L19: 762 | N19: 406
A20: 18 | B20: 125 | C20: 12518 | D20: 432 | F20: . . | H20: ... | J20: . . | L20: 864 | N20: 432
A21: 20 | B21: 125 | C21: 12520 | D21: 457 | F21: ... | H21: ... | J21: ... | L21: 914 | N21: 457
A22: 22 | B22: 125 | C22: 12522 | D22: . . . | F22: . . | H22: ... | J22: . . | L22: ... | N22: . . .
A23: 24 | B23: 125 | C23: 12524 | D23: 508 | F23: ... | H23: ... | J23: ... | L23: 1067 | N23: 508
A24: 26 | B24: 125 | C24: 12526 | D24: ... | F24: . . | H24: ... | J24: . . | L24: ... | N24: ...
A25: 28 | B25: 125 | C25: 12528 | D25: ... | F25: .. | H25: ... | J25: .. | L25: . | N25: ...
A26: 30 | B26: 125 | C26: 12530 | D26: . . | F26: . . | H26: ... | J26: . . | L26: 1295 | N26: . .
A27: 32 | B27: 125 | C27: 12532 | D27: . . | F27: ... | H27: ... | J27: ... | L27: ... | N27: . .
A28: 34 | B28: 125 | C28: 12534 | D28: . . | F28: . . | H28: ... | J28: . . | L28: . | N28: . .
A29: 36 | B29: 125 | C29: 12536 | D29: . . | F29: . . | H29: ... | J29: . . | L29: 1600 | N29: . .
A30: 0.25 | B30: 150 | C30: 1500.25 | D30: 102 | F30: 102 | H30: 51 | J30: 102 | L30: ... | N30: ...
A31: 0.375 | B31: 150 | C31: 1500.375 | D31: 102 | F31: 102 | H31: 51 | J31: 102 | L31: ... | N31: . . .
A32: 0.5 | B32: 150 | C32: 1500.5 | D32: 108 | F32: 108 | H32: 57 | J32: 108 | L32: ... | N32: 108
A33: 0.75 | B33: 150 | C33: 1500.75 | D33: 117 | F33: 117 | H33: 64 | J33: 117 | L33: ... | N33: 117
A34: 1 | B34: 150 | C34: 1501 | D34: 127 | F34: 127 | H34: 70 | J34: 127 | L34: ... | N34: 127
A35: 1.25 | B35: 150 | C35: 1501.25 | D35: 140 | F35: 140 | H35: 76 | J35: 140 | L35: ... | N35: 140
A36: 1.5 | B36: 150 | C36: 1501.5 | D36: 165 | F36: 165 | H36: 83 | J36: 165 | L36: ... | N36: 165
A37: 2 | B37: 150 | C37: 1502 | D37: 178 | F37: 203 | H37: 102 | J37: 203 | L37: ... | N37: 178
A38: 2.5 | B38: 150 | C38: 1502.5 | D38: 190 | F38: 216 | H38: 108 | J38: 216 | L38: ... | N38: 190
A39: 3 | B39: 150 | C39: 1503 | D39: 203 | F39: 241 | H39: 121 | J39: 241 | L39: ... | N39: 203
A40: 4 | B40: 150 | C40: 1504 | D40: 229 | F40: 292 | H40: 146 | J40: 292 | L40: 305 | N40: 229
A41: 5 | B41: 150 | C41: 1505 | D41: 254 | F41: 356 | H41: 178 | J41: 356 | L41: 381 | N41: ...
A42: 6 | B42: 150 | C42: 1506 | D42: 267 | F42: 406 | H42: 203 | J42: 406 | L42: 394 | N42: 394
A43: 8 | B43: 150 | C43: 1508 | D43: 292 | F43: 495 | H43: 248 | J43: 495 | L43: 457 | N43: 457
A44: 10 | B44: 150 | C44: 15010 | D44: 330 | F44: 622 | H44: 31 1 | J44: 622 | L44: 533 | N44: 533
A45: 12 | B45: 150 | C45: 15012 | D45: 356 | F45: 698 | H45: 349 | J45: 698 | L45: 610 | N45: 610
A46: 14 | B46: 150 | C46: 15014 | D46: 381 | F46: 787 | H46: 394 | J46: 787 | L46: 686 | N46: 686
A47: 16 | B47: 150 | C47: 15016 | D47: 406 | F47: 914 | H47: 457 | J47: 914 | L47: 762 | N47: 762
A48: 18 | B48: 150 | C48: 15018 | D48: 432 | F48: 978 | H48: ... | J48: 978 | L48: 864 | N48: 864
A49: 20 | B49: 150 | C49: 15020 | D49: 457 | F49: 978 | H49: ... | J49: 978 | L49: 914 | N49: 914
A50: 22 | B50: 150 | C50: 15022 | D50: ... | F50: 1067 | H50: ... | J50: 1067 | L50: . . . | N50: . . .
A51: 24 | B51: 150 | C51: 15024 | D51: 508 | F51: 1295 | H51: ... | J51: 1295 | L51: 1067 | N51: 1067
A52: 26 | B52: 150 | C52: 15026 | D52: 559 | F52: 1295 | H52: ... | J52: 1295 | L52: . . . | N52: . . .
A53: 28 | B53: 150 | C53: 15028 | D53: 610 | F53: 1448 | H53: ... | J53: 1448 | L53: . . . | N53: . . .
A54: 30 | B54: 150 | C54: 15030 | D54: 610 | F54: 1524 | H54: ... | J54: 1524 | L54: . . . | N54: . . .
A55: 32 | B55: 150 | C55: 15032 | D55: ... | F55: ... | H55: ... | J55: ... | L55: ... | N55: ...
A56: 34 | B56: 150 | C56: 15034 | D56: ... | F56: ... | H56: ... | J56: ... | L56: . . . | N56: ...
A57: 36 | B57: 150 | C57: 15036 | D57: 711 | F57: 1956 | H57: ... | J57: 1956 | L57: . . . | N57: ...
A58: 0.5 | B58: 300 | C58: 3000.5 | D58: 140 | F58: ... | H58: ... | J58: 152 | L58: ... | N58: 140
A59: 0.75 | B59: 300 | C59: 3000.75 | D59: 152 | F59: ... | H59: ... | J59: 178 | L59: ... | N59: 152
A60: 1 | B60: 300 | C60: 3001 | D60: 165 | F60: 215 | H60: ... | J60: 203 | L60: ... | N60: 165
A61: 1.25 | B61: 300 | C61: 3001.25 | D61: 178 | F61: 229 | H61: ... | J61: 216 | L61: ... | N61: 178
A62: 1.5 | B62: 300 | C62: 3001.5 | D62: 190 | F62: 241 | H62: ... | J62: 229 | L62: ... | N62: 190
A63: 2 | B63: 300 | C63: 3002 | D63: 216 | F63: 267 | H63: ... | J63: 267 | L63: ... | N63: 216
A64: 2.5 | B64: 300 | C64: 3002.5 | D64: 241 | F64: 292 | H64: ... | J64: 292 | L64: ... | N64: 241
A65: 3 | B65: 300 | C65: 3003 | D65: 282 | F65: 318 | H65: 159 | J65: 318 | L65: ... | N65: 282
A66: 4 | B66: 300 | C66: 3004 | D66: 305 | F66: 356 | H66: 178 | J66: 356 | L66: ... | N66: 305
A67: 5 | B67: 300 | C67: 3005 | D67: 381 | F67: 400 | H67: 200 | J67: 400 | L67: ... | N67: . . .
A68: 6 | B68: 300 | C68: 3006 | D68: 403 | F68: 444 | H68: 222 | J68: 444 | L68: 403 | N68: 403
A69: 8 | B69: 300 | C69: 3008 | D69: 419 | F69: 533 | H69: 279 | J69: 559 | L69: 502 | N69: 502
A70: 10 | B70: 300 | C70: 30010 | D70: 457 | F70: 622 | H70: 31 1 | J70: 622 | L70: 568 | N70: 568
A71: 12 | B71: 300 | C71: 30012 | D71: 502 | F71: 711 | H71: 356 | J71: 711 | L71: 711 | N71: 648
A72: 14 | B72: 300 | C72: 30014 | D72: 762 | F72: 838 | H72: . . . | J72: ... | L72: 762 | N72: 762
A73: 16 | B73: 300 | C73: 30016 | D73: 838 | F73: 864 | H73: . . . | J73: ... | L73: 838 | N73: 838
A74: 18 | B74: 300 | C74: 30018 | D74: 914 | F74: 978 | H74: . . . | J74: ... | L74: 914 | N74: 914
A75: 20 | B75: 300 | C75: 30020 | D75: 991 | F75: 1016 | H75: . . . | J75: ... | L75: 991 | N75: 99 1
A76: 22 | B76: 300 | C76: 30022 | D76: 1092 | F76: 1118 | H76: . . . | J76: ... | L76: 1092 | N76: 1092
A77: 24 | B77: 300 | C77: 30024 | D77: 1143 | F77: 1346 | H77: . . . | J77: ... | L77: 1143 | N77: 1143
A78: 26 | B78: 300 | C78: 30026 | D78: 1245 | F78: 1346 | H78: . . . | J78: ... | L78: 1245 | N78: 1245
A79: 28 | B79: 300 | C79: 30028 | D79: 1346 | F79: 1499 | H79: . . . | J79: ... | L79: 1346 | N79: 1346
A80: 30 | B80: 300 | C80: 30030 | D80: 1397 | F80: 1594 | H80: . . . | J80: ... | L80: 1397 | N80: 1397
A81: 32 | B81: 300 | C81: 30032 | D81: 1524 | F81: . . . | H81: . . . | J81: ... | L81: 1524 | N81: 1524
A82: 34 | B82: 300 | C82: 30034 | D82: 1626 | F82: . . . | H82: . . . | J82: ... | L82: 1626 | N82: 1626
A83: 36 | B83: 300 | C83: 30036 | D83: 1727 | F83: 2083 | H83: . . . | J83: ... | L83: 1727 | N83: 1727
A84: 0.5 | B84: 600 | C84: 6000.5 | D84: 165 | F84: 165 | H84: 83 | J84: 165 | L84: ... | N84: 165
A85: 0.75 | B85: 600 | C85: 6000.75 | D85: 190 | F85: 190 | H85: 95 | J85: 190 | L85: ... | N85: 190
A86: 1 | B86: 600 | C86: 6001 | D86: 241 | F86: 241 | H86: 121 | J86: 241 | L86: 216 | N86: 241
A87: 1.25 | B87: 600 | C87: 6001.25 | D87: 330 | F87: 330 | H87: 165 | J87: 330 | L87: 229 | N87: 330
A88: 1.5 | B88: 600 | C88: 6001.5 | D88: 216 | F88: 216 | H88: 108 | J88: 216 | L88: 241 | N88: 216
A89: 2 | B89: 600 | C89: 6002 | D89: 229 | F89: 229 | H89: 114 | J89: 229 | L89: 330 | N89: 229
A90: 2.5 | B90: 600 | C90: 6002.5 | D90: 292 | F90: 292 | H90: 146 | J90: 292 | L90: 292 | N90: 292
A91: 3 | B91: 600 | C91: 6003 | D91: 356 | F91: 356 | H91: 178 | J91: 356 | L91: 356 | N91: 356
A92: 4 | B92: 600 | C92: 6004 | D92: 432 | F92: 432 | H92: 216 | J92: 432 | L92: 432 | N92: 432
A93: 5 | B93: 600 | C93: 6005 | D93: 508 | F93: 508 | H93: 254 | J93: 508 | L93: ... | N93: ...
A94: 6 | B94: 600 | C94: 6006 | D94: 559 | F94: 559 | H94: 279 | J94: 559 | L94: 559 | N94: 559
A95: 8 | B95: 600 | C95: 6008 | D95: 660 | F95: 660 | H95: 330 | J95: 660 | L95: 660 | N95: 660
A96: 10 | B96: 600 | C96: 60010 | D96: 787 | F96: 787 | H96: 394 | J96: 787 | L96: 787 | N96: 787
A97: 12 | B97: 600 | C97: 60012 | D97: 838 | F97: 838 | H97: 419 | J97: 838 | L97: 838 | N97: 838
A98: 14 | B98: 600 | C98: 60014 | D98: 889 | F98: 889 | H98: ... | J98: 889 | L98: 889 | N98: 889
A99: 16 | B99: 600 | C99: 60016 | D99: 991 | F99: 991 | H99: . . . | J99: 991 | L99: 99 1 | N99: 991
A100: 18 | B100: 600 | C100: 60018 | D100: 1092 | F100: 1092 | H100: . . . | J100: 1092 | L100: 1092 | N100: 1092
A101: 20 | B101: 600 | C101: 60020 | D101: 1194 | F101: 1194 | H101: ... | J101: 1194 | L101: 1194( | N101: 1194
A102: 22 | B102: 600 | C102: 60022 | D102: 1295 | F102: 1295 | H102: . . . | J102: 1295 | L102: 1295 | N102: 1295
A103: 24 | B103: 600 | C103: 60024 | D103: 1397 | F103: 1397 | H103: . . . | J103: 1397 | L103: 1397 | N103: 1397
A104: 26 | B104: 600 | C104: 60026 | D104: 1448 | F104: 1448 | H104: . . . | J104: 1448 | L104: 1448 | N104: 1448
A105: 28 | B105: 600 | C105: 60028 | D105: 1549 | F105: 1600 | H105: ... | J105: 1600 | L105: ... | N105: 1549
A106: 30 | B106: 600 | C106: 60030 | D106: 1651 | F106: 1651 | H106: . . . | J106: 1651 | L106: 1778 | N106: 1651
A107: 32 | B107: 600 | C107: 60032 | D107: 1778 | F107: ... | H107: . . . | J107: ... | L107: 1778 | N107: 1778
A108: 34 | B108: 600 | C108: 60034 | D108: 1930 | F108: ... | H108: . . . | J108: ... | L108: 1930 | N108: 1930
A109: 36 | B109: 600 | C109: 60036 | D109: 2083 | F109: 2083 | H109: . . . | J109: 2083 | L109: 2083 | N109: 2083
A110: 0.75 | B110: 900 | C110: 9000.75 | D110: . . | F110: 229 | H110: 114 | J110: 229 | L110: ... | N110: . . .
A111: 1 | B111: 900 | C111: 9001 | D111: 254 | F111: 254 | H111: 127 | J111: 254 | L111: 254 | N111: 254
A112: 1.25 | B112: 900 | C112: 9001.25 | D112: 279 | F112: 279 | H112: 140 | J112: 279 | L112: 279 | N112: 279
A113: 1.5 | B113: 900 | C113: 9001.5 | D113: 305 | F113: 305 | H113: 152 | J113: 305 | L113: 305 | N113: 305
A114: 2 | B114: 900 | C114: 9002 | D114: 368 | F114: 368 | H114: 184 | J114: 368 | L114: 368 | N114: 368
A115: 2.5 | B115: 900 | C115: 9002.5 | D115: 419 | F115: 419 | H115: 210 | J115: 419 | L115: 419 | N115: 419
A116: 3 | B116: 900 | C116: 9003 | D116: 381 | F116: 381 | H116: 190 | J116: 381 | L116: 381 | N116: 381
A117: 4 | B117: 900 | C117: 9004 | D117: 457 | F117: 457 | H117: 229 | J117: 457 | L117: 457 | N117: 457
A118: 5 | B118: 900 | C118: 9005 | D118: 559 | F118: 559 | H118: 279 | J118: 559 | L118: ... | N118: 610
A119: 6 | B119: 900 | C119: 9006 | D119: 610 | F119: 610 | H119: 305 | J119: 610 | L119: 610 | N119: 737
A120: 8 | B120: 900 | C120: 9008 | D120: 737 | F120: 737 | H120: 368 | J120: 737 | L120: 737 | N120: 838
A121: 10 | B121: 900 | C121: 90010 | D121: 838 | F121: 838 | H121: 419 | J121: 838 | L121: 838 | N121: 965
A122: 12 | B122: 900 | C122: 90012 | D122: 965 | F122: 965 | H122: 483 | J122: 965 | L122: 965 | N122: 1029
A123: 14 | B123: 900 | C123: 90014 | D123: 1029 | F123: 1029 | H123: 514 | J123: 1029 | L123: ... | N123: 1130
A124: 16 | B124: 900 | C124: 90016 | D124: 1130 | F124: 1130 | H124: 660 | J124: 1130 | L124: 1130 | N124: 1219
A125: 18 | B125: 900 | C125: 90018 | D125: 1219 | F125: 1219 | H125: 737 | J125: 1219 | L125: ... | N125: 1321
A126: 20 | B126: 900 | C126: 90020 | D126: 1321 | F126: 1321 | H126: 826 | J126: 1321 | L126: 1321 | N126: 1549
A127: 22 | B127: 900 | C127: 90022 | D127: ... | F127: ... | H127: 991 | J127: ... | L127: ... | N127: . . .
A128: 24 | B128: 900 | C128: 90024 | D128: 1549 | F128: 1549 | H128: . . . | J128: 1549 | L128: ... | N128: . . .
A129: 0.5 | B129: 1500 | C129: 15000.5 | D129: ... | F129: 216 | H129: 108 | J129: 216 | L129: ... | N129: . . .
A130: 0.75 | B130: 1500 | C130: 15000.75 | D130: ... | F130: 229 | H130: 114 | J130: 229 | L130: ... | N130: . . .
A131: 1 | B131: 1500 | C131: 15001 | D131: 254 | F131: 254 | H131: 127 | J131: 254 | L131: 254 | N131: . . .
A132: 1.25 | B132: 1500 | C132: 15001.25 | D132: 279 | F132: 279 | H132: 140 | J132: 279 | L132: 279 | N132: . . .
A133: 1.5 | B133: 1500 | C133: 15001.5 | D133: 305 | F133: 305 | H133: 152 | J133: 305 | L133: 305 | N133: . . .
A134: 2 | B134: 1500 | C134: 15002 | D134: 368 | F134: 368 | H134: 184 | J134: 368 | L134: 368 | N134: 368
A135: 2.5 | B135: 1500 | C135: 15002.5 | D135: 419 | F135: 419 | H135: 210 | J135: 419 | L135: 419 | N135: 419
A136: 3 | B136: 1500 | C136: 15003 | D136: 470 | F136: 470 | H136: 235 | J136: 470 | L136: 470 | N136: 470
A137: 4 | B137: 1500 | C137: 15004 | D137: 546 | F137: 546 | H137: 273 | J137: 546 | L137: 546 | N137: 546
A138: 5 | B138: 1500 | C138: 15005 | D138: 673 | F138: 673 | H138: 337 | J138: 673 | L138: ... | N138: . . .
A139: 6 | B139: 1500 | C139: 15006 | D139: 705 | F139: 705 | H139: 353 | J139: 705 | L139: 705 | N139: 705
A140: 8 | B140: 1500 | C140: 15008 | D140: 832 | F140: 832 | H140: 416 | J140: 832 | L140: 832 | N140: 832
A141: 10 | B141: 1500 | C141: 150010 | D141: 99 1 | F141: 991 | H141: 495 | J141: 991 | L141: 991 | N141: 991
A142: 12 | B142: 1500 | C142: 150012 | D142: 1130 | F142: 1130 | H142: 565 | J142: 1130 | L142: 1130 | N142: 1130
A143: 14 | B143: 1500 | C143: 150014 | D143: 1257 | F143: 1257 | H143: 629 | J143: 1257 | L143: ... | N143: 1257
A144: 16 | B144: 1500 | C144: 150016 | D144: 1384 | F144: 1384 | H144: . . . | J144: 1384 | L144: 1384 | N144: 1384
A145: 18 | B145: 1500 | C145: 150018 | D145: 1537 | F145: 1537 | H145: . . . | J145: 1537 | L145: ... | N145: ...
A146: 20 | B146: 1500 | C146: 150020 | D146: 1664 | F146: 1664 | H146: . . . | J146: 1664 | L146: ... | N146: ...
A147: 22 | B147: 1500 | C147: 150022 | D147: ... | F147: ... | H147: . . . | J147: ... | L147: ... | N147: ...
A148: 24 | B148: 1500 | C148: 150024 | D148: 1943 | F148: 1943 | H148: . . . | J148: 1943 | L148: ... | N148: ...
A149: 0.5 | B149: 2500 | C149: 25000.5 | D149: 264 | F149: 264 | H149: 132 | J149: 264 | L149: . . . | N149: ...
A150: 0.75 | B150: 2500 | C150: 25000.75 | D150: 273 | F150: 273 | H150: 137 | J150: 273 | L150: . . . | N150: ...
A151: 1 | B151: 2500 | C151: 25001 | D151: 308 | F151: 308 | H151: 154 | J151: 308 | L151: 308 | N151: ...
A152: 1.25 | B152: 2500 | C152: 25001.25 | D152: 349 | F152: 349 | H152: 175 | J152: 349 | L152: ... | N152: ...
A153: 1.5 | B153: 2500 | C153: 25001.5 | D153: 384 | F153: 384 | H153: 192 | J153: 384 | L153: 384 | N153: ...
A154: 2 | B154: 2500 | C154: 25002 | D154: 45 1 | F154: 451 | H154: 226 | J154: 451 | L154: 451 | N154: 451
A155: 2.5 | B155: 2500 | C155: 25002.5 | D155: 508 | F155: 508 | H155: 254 | J155: 508 | L155: 508 | N155: 508
A156: 3 | B156: 2500 | C156: 25003 | D156: 578 | F156: 578 | H156: 289 | J156: 578 | L156: 578 | N156: 578
A157: 4 | B157: 2500 | C157: 25004 | D157: 673 | F157: 673 | H157: 337 | J157: 673 | L157: 673 | N157: 673
A158: 5 | B158: 2500 | C158: 25005 | D158: 794 | F158: 794 | H158: 397 | J158: 794 | L158: 794 | N158: ...
A159: 6 | B159: 2500 | C159: 25006 | D159: 914 | F159: 914 | H159: 457 | J159: 914 | L159: 914 | N159: 914
A160: 8 | B160: 2500 | C160: 25008 | D160: 1022 | F160: 1022 | H160: 51 1 | J160: 1022 | L160: 1022 | N160: 1022
A161: 10 | B161: 2500 | C161: 250010 | D161: 1270 | F161: 1270 | H161: 635 | J161: 1270 | L161: 1270 | N161: 1270
A162: 12 | B162: 2500 | C162: 250012 | D162: 1422 | F162: 1422 | H162: 71 1 | J162: 1422 | L162: 1422 | N162: 1422
A163: 14 | B163: 2500 | C163: 250014 | D163: . . | F163: ... | H163: . . . | J163: ... | L163: ... | N163: ...
A164: 16 | B164: 2500 | C164: 250016 | D164: . . | F164: ... | H164: . . . | J164: ... | L164: ... | N164: ...
A165: 18 | B165: 2500 | C165: 250018 | D165: . . . | F165: ... | H165: ... | J165: ... | L165: . . . | N165: ...
D169: rating | F169: rating | H169: rating | J169: rating | L169: rating | N169: rating
A170: Sl no return | D170: =VLOOKUP(C172,C2:D165,2,FALSE) -> 889 | F170: =VLOOKUP(C172,C2:F165,4,FALSE) -> 889 | H170: =VLOOKUP(C172,C2:H165,6,FALSE) -> ... | J170: =VLOOKUP(C172,C2:J165,8,FALSE) -> 889 | L170: =VLOOKUP(C172,C2:L165,10,FALSE) -> 889 | N170: =VLOOKUP(C172,C2:N165,12,FALSE) -> 889
A171: value taken from data | B171: ='General Data'!B39 -> 14 | D171: ='General Data'!C39 -> 600 | F171: ='General Data'!M39 ->  | J171: ='General Data'!S39 ->  | L171: ='General Data'!Y39 ->  | N171: ='General Data'!AE39 -> 
A172: value returned | C172: =D171&B171 -> 60014 | D172: =D170 -> 889 | F172: =F170 -> 889 | H172: =H170 -> ... | J172: =J170 -> 889 | L172: =L170 -> 889 | N172: =N170 -> 889
D173: =ISERROR(D172) -> FALSE | F173: =ISERROR(F172) -> FALSE | H173: =ISERROR(H172) -> FALSE | J173: =ISERROR(J172) -> FALSE | L173: =ISERROR(L172) -> FALSE | N173: =ISERROR(N172) -> FALSE
D174: =IF(D173=TRUE,"….",D172) -> 889 | F174: =IF(F173=TRUE,"….",F172) -> 889 | H174: =IF(H173=TRUE,"….",H172) -> ... | J174: =IF(J173=TRUE,"….",J172) -> 889 | L174: =IF(L173=TRUE,"….",L172) -> 889 | N174: =IF(N173=TRUE,"….",N172) -> 889

Sheet Flanges
F1: WN | M1: RJ
A2: Size | B2: Rating | D2: B | E2: L | F2: No.of Bolt | G2: Bolt Dia | H2: Bolt Len. | I2: Weight | J2: S | K2: BL. Flange | L2: B | M2: L | N2: No.of Bolt | O2: Bolt Dia | P2: Bolt Len. | Q2: Weight | R2: S | S2: BL. Flange
A3: 0.5 | B3: 150 | C3: =B3&A3 -> 1500.5 | D3: 60,3 | E3: 48 | F3: 4 | I3: 0.6 | J3: 11.2
A4: 0.75 | B4: 150 | C4: 1500.75 | D4: 69,8 | E4: 52 | F4: 4 | I4: 0.8 | J4: 12.7
A5: 1 | B5: 150 | C5: 1501 | D5: 79.4 | E5: 56 | F5: 4 | I5: 1.1 | J5: 14.3
A6: 1.25 | B6: 150 | C6: 1501.25 | D6: 88.9 | E6: 57 | F6: 4 | I6: 1.4 | J6: 15.7
A7: 1.5 | B7: 150 | C7: 1501.5 | D7: 98.4 | E7: 62 | F7: 4 | I7: 1.8 | J7: 17.5
A8: 2 | B8: 150 | C8: 1502 | D8: 120.6 | E8: 63 | F8: 4 | I8: 2.7 | J8: 19.1
A9: 2.5 | B9: 150 | C9: 1502.5 | D9: 139.7 | E9: 70 | F9: 4 | I9: 4 | J9: 22.3
A10: 3 | B10: 150 | C10: 1503 | D10: 152.4 | E10: 70 | F10: 4 | I10: 4.5 | J10: 23.9
A11: 3.5 | B11: 150 | C11: 1503.5 | D11: 177.8 | E11: 71 | F11: 8 | I11: 6.2 | J11: 23.9
A12: 4 | B12: 150 | C12: 1504 | D12: 190.5 | E12: 76 | F12: 8 | I12: 7 | J12: 23.9
A13: 5 | B13: 150 | C13: 1505 | D13: 215.9 | E13: 89 | F13: 8 | I13: 8.6 | J13: 23.9
A14: 6 | B14: 150 | C14: 1506 | D14: 241.3 | E14: 89 | F14: 8 | I14: 10.8 | J14: 25.4
A15: 8 | B15: 150 | C15: 1508 | D15: 298.4 | E15: 102 | F15: 8 | I15: 18 | J15: 28.5
A16: 10 | B16: 150 | C16: 15010 | D16: 362 | E16: 102 | F16: 12 | I16: 24 | J16: 30.2
A17: 12 | B17: 150 | C17: 15012 | D17: 431.8 | E17: 114 | F17: 12 | I17: 37 | J17: 31.8
A18: 14 | B18: 150 | C18: 15014 | D18: 476.2 | E18: 127 | F18: 12 | I18: 47 | J18: 35
A19: 16 | B19: 150 | C19: 15016 | D19: 539.8 | E19: 127 | F19: 16 | I19: 58 | J19: 36.6
A20: 18 | B20: 150 | C20: 15018 | D20: 577.8 | E20: 140 | F20: 16 | I20: 64 | J20: 39.7
A21: 20 | B21: 150 | C21: 15020 | D21: 635 | E21: 144 | F21: 20 | I21: 77 | J21: 42.9
A22: 24 | B22: 150 | C22: 15024 | D22: 749.3 | E22: 152 | F22: 20 | I22: 118 | J22: 47.7
A23: 0.5 | B23: 300 | C23: 3000.5 | D23: 34.9 | E23: 52 | F23: 4 | I23: 1.5 | J23: 14.2
A24: 0.75 | B24: 300 | C24: 3000.75 | D24: 42.9 | E24: 57 | F24: 4 | I24: 1.8 | J24: 15.7
A25: 1 | B25: 300 | C25: 3001 | D25: 50.8 | E25: 62 | F25: 4 | I25: 2 | J25: 17.5
A26: 1.25 | B26: 300 | C26: 3001.25 | D26: 63.5 | E26: 65 | F26: 4 | I26: 2.5 | J26: 19
A27: 1.5 | B27: 300 | C27: 3001.5 | D27: 73 | E27: 68 | F27: 4 | I27: 3.5 | J27: 20.6
A28: 2 | B28: 300 | C28: 3002 | D28: 92.1 | E28: 70 | F28: 8 | I28: 4 | J28: 22.4
A29: 2.5 | B29: 300 | C29: 3002.5 | D29: 104.8 | E29: 76 | F29: 8 | I29: 5 | J29: 25.4
A30: 3 | B30: 300 | C30: 3003 | D30: 127 | E30: 79 | F30: 8 | I30: 7 | J30: 28.4
A31: 3.5 | B31: 300 | C31: 3003.5 | D31: 139.7 | E31: 81 | F31: 8 | I31: 9.2 | J31: 30.2
A32: 4 | B32: 300 | C32: 3004 | D32: 157.2 | E32: 86 | F32: 8 | I32: 11 | J32: 31.8
A33: 5 | B33: 300 | C33: 3005 | D33: 185.7 | E33: 98 | F33: 8 | I33: 14 | J33: 35
A34: 6 | B34: 300 | C34: 3006 | D34: 215.9 | E34: 98 | F34: 12 | I34: 19 | J34: 36.6
A35: 8 | B35: 300 | C35: 3008 | D35: 269.9 | E35: 111 | F35: 12 | I35: 30 | J35: 41.1
A36: 10 | B36: 300 | C36: 30010 | D36: 323.8 | E36: 117 | F36: 16 | I36: 41 | J36: 47.8
A37: 12 | B37: 300 | C37: 30012 | D37: 381 | E37: 130 | F37: 16 | I37: 62 | J37: 50.8
A38: 14 | B38: 300 | C38: 30014 | D38: 412.8 | E38: 143 | F38: 20 | I38: 84 | J38: 53.8
A39: 16 | B39: 300 | C39: 30016 | D39: 469.9 | E39: 146 | F39: 20 | I39: 111 | J39: 57.2
A40: 18 | B40: 300 | C40: 30018 | D40: 533.4 | E40: 159 | F40: 24 | I40: 138 | J40: 60.5
A41: 20 | B41: 300 | C41: 30020 | D41: 584.2 | E41: 162 | F41: 24 | I41: 171 | J41: 63.5
A42: 24 | B42: 300 | C42: 30024 | D42: 692.2 | E42: 168 | F42: 24 | I42: 247 | J42: 69.9
A43: 0.5 | B43: 600 | C43: 6000.5 | D43: 34.9 | E43: 52 | F43: 4 | I43: 1.5 | J43: 14.2
A44: 0.75 | B44: 600 | C44: 6000.75 | D44: 42.9 | E44: 57 | F44: 4 | I44: 2 | J44: 15.7
A45: 1 | B45: 600 | C45: 6001 | D45: 50.8 | E45: 62 | F45: 4 | I45: 2.5 | J45: 17.5
A46: 1.25 | B46: 600 | C46: 6001.25 | D46: 63.5 | E46: 67 | F46: 4 | I46: 3.2 | J46: 20.6
A47: 1.5 | B47: 600 | C47: 6001.5 | D47: 73 | E47: 70 | F47: 4 | I47: 4.5 | J47: 22.4
A48: 2 | B48: 600 | C48: 6002 | D48: 92.1 | E48: 73 | F48: 8 | I48: 5.5 | J48: 25.4
A49: 2.5 | B49: 600 | C49: 6002.5 | D49: 104.8 | E49: 79 | F49: 8 | I49: 8 | J49: 28.4
A50: 3 | B50: 600 | C50: 6003 | D50: 127 | E50: 83 | F50: 8 | I50: 10.5 | J50: 31.8
A51: 3.5 | B51: 600 | C51: 6003.5 | D51: 139.7 | E51: 86 | F51: 8 | I51: 15.6 | J51: 35
A52: 4 | B52: 600 | C52: 6004 | D52: 157.2 | E52: 102 | F52: 8 | I52: 19 | J52: 38.1
A53: 5 | B53: 600 | C53: 6005 | D53: 185.7 | E53: 114 | F53: 8 | I53: 31 | J53: 44.5
A54: 6 | B54: 600 | C54: 6006 | D54: 215.9 | E54: 117 | F54: 12 | I54: 37 | J54: 47.8
A55: 8 | B55: 600 | C55: 6008 | D55: 269.9 | E55: 133 | F55: 12 | I55: 53 | J55: 55.6
A56: 10 | B56: 600 | C56: 60010 | D56: 323.8 | E56: 152 | F56: 16 | I56: 86 | J56: 63.5
A57: 12 | B57: 600 | C57: 60012 | D57: 381 | E57: 156 | F57: 20 | I57: 102 | J57: 66.5
A58: 14 | B58: 600 | C58: 60014 | D58: 412.8 | E58: 165 | F58: 20 | I58: 150 | J58: 69.9
A59: 16 | B59: 600 | C59: 60016 | D59: 469.9 | E59: 178 | F59: 20 | I59: 190 | J59: 76.2
A60: 18 | B60: 600 | C60: 60018 | D60: 533.4 | E60: 184 | F60: 20 | I60: 240 | J60: 82.6
A61: 20 | B61: 600 | C61: 60020 | D61: 584.2 | E61: 190 | F61: 24 | I61: 295 | J61: 88.9
A62: 24 | B62: 600 | C62: 60024 | D62: 692.2 | E62: 203 | F62: 24 | I62: 365 | J62: 101.6
A63: 0.5 | B63: 900 | C63: 9000.5 | D63: 34.9 | E63: 60 | F63: 4 | I63: 2 | J63: 22.4
A64: 0.75 | B64: 900 | C64: 9000.75 | D64: 42.9 | E64: 70 | F64: 4 | I64: 3 | J64: 25.4
A65: 1 | B65: 900 | C65: 9001 | D65: 50.8 | E65: 73 | F65: 4 | I65: 4 | J65: 28.4
A66: 1.25 | B66: 900 | C66: 9001.25 | D66: 63.5 | E66: 73 | F66: 4 | I66: 4.6 | J66: 28.4
A67: 1.5 | B67: 900 | C67: 9001.5 | D67: 73 | E67: 83 | F67: 4 | I67: 6.5 | J67: 31.8
A68: 2 | B68: 900 | C68: 9002 | D68: 92.1 | E68: 102 | F68: 8 | I68: 11.5 | J68: 38.1
A69: 2.5 | B69: 900 | C69: 9002.5 | D69: 104.8 | E69: 105 | F69: 8 | I69: 15.8 | J69: 41.1
A70: 3 | B70: 900 | C70: 9003 | D70: 127 | E70: 102 | F70: 8 | I70: 14.5 | J70: 38.1
A71: 4 | B71: 900 | C71: 9004 | D71: 157.2 | E71: 114 | F71: 8 | I71: 23 | J71: 44.5
A72: 5 | B72: 900 | C72: 9005 | D72: 185.7 | E72: 127 | F72: 8 | I72: 37 | J72: 50.8
A73: 6 | B73: 900 | C73: 9006 | D73: 215.9 | E73: 140 | F73: 12 | I73: 50 | J73: 55.6
A74: 8 | B74: 900 | C74: 9008 | D74: 269.9 | E74: 162 | F74: 12 | I74: 85 | J74: 63.5
A75: 10 | B75: 900 | C75: 90010 | D75: 323.8 | E75: 184 | F75: 16 | I75: 118 | J75: 69.9
A76: 12 | B76: 900 | C76: 90012 | D76: 381 | E76: 200 | F76: 20 | I76: 163 | J76: 79.2
A77: 14 | B77: 900 | C77: 90014 | D77: 412.8 | E77: 213 | F77: 20 | I77: 186 | J77: 85.9
A78: 16 | B78: 900 | C78: 90016 | D78: 469.9 | E78: 216 | F78: 20 | I78: 224 | J78: 88.9
A79: 18 | B79: 900 | C79: 90018 | D79: 533.4 | E79: 229 | F79: 20 | I79: 300 | J79: 101.6
A80: 20 | B80: 900 | C80: 90020 | D80: 584.2 | E80: 248 | F80: 20 | I80: 373 | J80: 108
A81: 24 | B81: 900 | C81: 90024 | D81: 692.2 | E81: 292 | F81: 20 | I81: 680 | J81: 139.7
A82: 0.5 | B82: 1500 | C82: 15000.5 | D82: 34.9 | E82: 60 | F82: 4 | I82: 2 | J82: 22.4
A83: 0.75 | B83: 1500 | C83: 15000.75 | D83: 42.9 | E83: 70 | F83: 4 | I83: 3 | J83: 25.4
A84: 1 | B84: 1500 | C84: 15001 | D84: 50.8 | E84: 73 | F84: 4 | I84: 4 | J84: 28.4
A85: 1.25 | B85: 1500 | C85: 15001.25 | D85: 63.5 | E85: 73 | F85: 4 | I85: 4.6 | J85: 28.4
A86: 1.5 | B86: 1500 | C86: 15001.5 | D86: 73 | E86: 83 | F86: 4 | I86: 6.5 | J86: 31.8
A87: 2 | B87: 1500 | C87: 15002 | D87: 92.1 | E87: 102 | F87: 8 | I87: 11.5 | J87: 38.1
A88: 2.5 | B88: 1500 | C88: 15002.5 | D88: 104.8 | E88: 105 | F88: 8 | I88: 15.8 | J88: 41.1
A89: 3 | B89: 1500 | C89: 15003 | D89: 127 | E89: 118 | F89: 8 | I89: 22 | J89: 47.8
A90: 4 | B90: 1500 | C90: 15004 | D90: 157.2 | E90: 124 | F90: 8 | I90: 30 | J90: 53.8
A91: 5 | B91: 1500 | C91: 15005 | D91: 185.7 | E91: 155 | F91: 8 | I91: 58 | J91: 73.2
A92: 6 | B92: 1500 | C92: 15006 | D92: 215.9 | E92: 171 | F92: 12 | I92: 70 | J92: 82.6
A93: 8 | B93: 1500 | C93: 15008 | D93: 269.7 | E93: 213 | F93: 12 | I93: 119 | J93: 91.9
A94: 10 | B94: 1500 | C94: 150010 | D94: 323.8 | E94: 254 | F94: 12 | I94: 204 | J94: 108
A95: 12 | B95: 1500 | C95: 150012 | D95: 381 | E95: 283 | F95: 16 | I95: 303 | J95: 124
A96: 14 | B96: 1500 | C96: 150014 | D96: 412.8 | E96: 298 | F96: 16 | I96: 426 | J96: 133.4
A97: 16 | B97: 1500 | C97: 150016 | D97: 469.9 | E97: 311 | F97: 16 | I97: 567 | J97: 146
A98: 18 | B98: 1500 | C98: 150018 | D98: 533.4 | E98: 327 | F98: 16 | I98: 737 | J98: 162
A99: 20 | B99: 1500 | C99: 150020 | D99: 584.2 | E99: 356 | F99: 16 | I99: 930 | J99: 177.8
A100: 24 | B100: 1500 | C100: 150024 | D100: 692.2 | E100: 406 | F100: 16 | I100: 1510 | J100: 203.2
A101: 0.5 | B101: 2500 | C101: 25000.5 | D101: 34.9 | E101: 73 | F101: 4 | I101: 3.6 | J101: 30.2
A102: 0.75 | B102: 2500 | C102: 25000.75 | D102: 42.9 | E102: 79 | F102: 4 | I102: 4 | J102: 31.8
A103: 1 | B103: 2500 | C103: 25001 | D103: 50.8 | E103: 89 | F103: 4 | I103: 6 | J103: 35
A104: 1.25 | B104: 2500 | C104: 25001.25 | D104: 63.5 | E104: 95 | F104: 4 | I104: 9 | J104: 38.1
A105: 1.5 | B105: 2500 | C105: 25001.5 | D105: 73 | E105: 111 | F105: 4 | I105: 13 | J105: 44.5
A106: 2 | B106: 2500 | C106: 25002 | D106: 92.1 | E106: 127 | F106: 8 | I106: 19 | J106: 50.8
A107: 2.5 | B107: 2500 | C107: 25002.5 | D107: 104.8 | E107: 143 | F107: 8 | I107: 24 | J107: 57.2
A108: 3 | B108: 2500 | C108: 25003 | D108: 127 | E108: 168 | F108: 8 | I108: 43 | J108: 66.5
A109: 4 | B109: 2500 | C109: 25004 | D109: 157.2 | E109: 190 | F109: 8 | I109: 66 | J109: 76.2
A110: 5 | B110: 2500 | C110: 25005 | D110: 185.7 | E110: 229 | F110: 8 | I110: 111 | J110: 91.9
A111: 6 | B111: 2500 | C111: 25006 | D111: 215.9 | E111: 273 | F111: 8 | I111: 172 | J111: 108
A112: 8 | B112: 2500 | C112: 25008 | D112: 269.9 | E112: 317 | F112: 12 | I112: 261 | J112: 127
A113: 10 | B113: 2500 | C113: 250010 | D113: 323.8 | E113: 419 | F113: 12 | I113: 485 | J113: 165.1
A114: 12 | B114: 2500 | C114: 250012 | D114: 381 | E114: 464 | F114: 12 | I114: 730 | J114: 184.2
A115: 26 | B115: 150 | C115: 15026 | D115: 806 | E115: 120 | F115: 24 | G115: 1.75 | H115: 215 | I115: 140 | J115: 70 | K115: 305 | L115: …. | M115: …. | N115: …. | O115: …. | P115: …. | Q115: …. | R115: …. | S115: ….
A116: 28 | B116: 150 | C116: 15028 | D116: 864 | E116: 125 | F116: 28 | G116: 1.75 | H116: 215 | I116: 160 | J116: 72 | K116: 365 | L116: …. | M116: …. | N116: …. | O116: …. | P116: …. | Q116: …. | R116: …. | S116: ….
A117: 30 | B117: 150 | C117: 15030 | D117: 914 | E117: 135 | F117: 28 | G117: 1.5 | H117: 230 | I117: 185 | J117: 75 | K117: 430 | L117: …. | M117: …. | N117: …. | O117: …. | P117: …. | Q117: …. | R117: …. | S117: ….
A118: 32 | B118: 150 | C118: 15032 | D118: 978 | E118: 145 | F118: 28 | G118: 1.5 | H118: 255 | I118: 235 | J118: 80 | K118: 540 | L118: …. | M118: …. | N118: …. | O118: …. | P118: …. | Q118: …. | R118: …. | S118: ….
A119: 34 | B119: 150 | C119: 15034 | D119: 1029 | E119: 150 | F119: 32 | G119: 1.5 | H119: 255 | I119: 250 | J119: 83 | K119: 600 | L119: …. | M119: …. | N119: …. | O119: …. | P119: …. | Q119: …. | R119: …. | S119: ….
A120: 36 | B120: 150 | C120: 15036 | D120: 1086 | E120: 160 | F120: 32 | G120: 1.5 | H120: 280 | I120: 295 | J120: 90 | K120: 735 | L120: …. | M120: …. | N120: …. | O120: …. | P120: …. | Q120: …. | R120: …. | S120: ….
A121: 38 | B121: 150 | C121: 15038 | D121: 1150 | E121: 165 | F121: 32 | G121: 1.5 | H121: 280 | I121: 365 | J121: 97 | K121: 885 | L121: …. | M121: …. | N121: …. | O121: …. | P121: …. | Q121: …. | R121: …. | S121: ….
A122: 40 | B122: 150 | C122: 15040 | D122: 1200 | E122: 175 | F122: 36 | G122: 1.5 | H122: 290 | I122: 405 | J122: 105 | K122: 1020 | L122: …. | M122: …. | N122: …. | O122: …. | P122: …. | Q122: …. | R122: …. | S122: ….
A123: 42 | B123: 150 | C123: 15042 | D123: 1257 | E123: 185 | F123: 36 | G123: 1.5 | H123: 300 | I123: 460 | J123: 108 | K123: 1170 | L123: …. | M123: …. | N123: …. | O123: …. | P123: …. | Q123: …. | R123: …. | S123: ….
A124: 44 | B124: 150 | C124: 15044 | D124: 1314 | E124: 190 | F124: 40 | G124: 1.5 | H124: 320 | I124: 510 | J124: 113 | K124: 1325 | L124: …. | M124: …. | N124: …. | O124: …. | P124: …. | Q124: …. | R124: …. | S124: ….
A125: 46 | B125: 150 | C125: 15046 | D125: 1365 | E125: 200 | F125: 40 | G125: 1.5 | H125: 330 | I125: 555 | J125: 118 | K125: 1485 | L125: …. | M125: …. | N125: …. | O125: …. | P125: …. | Q125: …. | R125: …. | S125: ….
A126: 48 | B126: 150 | C126: 15048 | D126: 1422 | E126: 210 | F126: 44 | G126: 1.25 | H126: 330 | I126: 615 | J126: 120 | K126: 1665 | L126: …. | M126: …. | N126: …. | O126: …. | P126: …. | Q126: …. | R126: …. | S126: ….
A127: 54 | B127: 150 | C127: 15054 | D127: 1594 | E127: 230 | F127: 44 | G127: 1.25 | H127: 360 | I127: 880 | J127: 123 | K127: 2235 | L127: …. | M127: …. | N127: …. | O127: …. | P127: …. | Q127: …. | R127: …. | S127: ….
A128: 60 | B128: 150 | C128: 15060 | D128: 1759 | E128: 250 | F128: 52 | G128: 1.25 | H128: 380 | I128: 1125 | J128: 132 | K128: 2955 | L128: …. | M128: …. | N128: …. | O128: …. | P128: …. | Q128: …. | R128: …. | S128: ….
A129: 26 | B129: 300 | C129: 30026 | D129: 876 | E129: 185 | F129: 28 | G129: 1.625 | H129: 255 | I129: 270 | J129: 90 | K129: 510 | L129: 876 | M129: 185 | N129: 28 | O129: 1.625 | P129: 280 | Q129: 285 | R129: 85 | S129: 505
A130: 28 | B130: 300 | C130: 30028 | D130: 940 | E130: 195 | F130: 28 | G130: 1.625 | H130: 265 | I130: 330 | J130: 95 | K130: 625 | L130: 940 | M130: 195 | N130: 28 | O130: 1.625 | P130: 290 | Q130: 345 | R130: 90 | S130: 620
A131: 30 | B131: 300 | C131: 30030 | D131: 997 | E131: 210 | F131: 28 | G131: 1.75 | H131: 290 | I131: 380 | J131: 100 | K131: 725 | L131: 997 | M131: 210 | N131: 28 | O131: 1.75 | P131: 305 | Q131: 395 | R131: 95 | S131: 725
A132: 32 | B132: 300 | C132: 30032 | D132: 1054 | E132: 220 | F132: 28 | G132: 1.875 | H132: 305 | I132: 435 | J132: 110 | K132: 825 | L132: 1054 | M132: 220 | N132: 28 | O132: 1.875 | P132: 330 | Q132: 460 | R132: 100 | S132: 850
A133: 34 | B133: 300 | C133: 30034 | D133: 1105 | E133: 230 | F133: 28 | G133: 1.875 | H133: 320 | I133: 490 | J133: 115 | K133: 970 | L133: 1105 | M133: 230 | N133: 28 | O133: 1.875 | P133: 345 | Q133: 515 | R133: 105 | S133: 980
A134: 36 | B134: 300 | C134: 30036 | D134: 1168 | E134: 240 | F134: 32 | G134: 2 | H134: 330 | I134: 550 | J134: 120 | K134: 1125 | L134: 1168 | M134: 240 | N134: 32 | O134: 2 | P134: 355 | Q134: 580 | R134: 110 | S134: 1135
A135: 38 | B135: 300 | C135: 30038 | D135: 1219 | E135: 255 | F135: 32 | G135: 2 | H135: 335 | I135: 635 | J135: 125 | K135: 1290 | L135: 1219 | M135: 255 | N135: 32 | O135: 2 | P135: 360 | Q135: 655 | R135: 115 | S135: 1250
A136: 40 | B136: 300 | C136: 30040 | D136: 1276 | E136: 265 | F136: 36 | G136: 2 | H136: 345 | I136: 695 | J136: 130 | K136: 1475 | L136: 1276 | M136: 265 | N136: 36 | O136: 2 | P136: 375 | Q136: 710 | R136: 115 | S136: 1560
A137: 42 | B137: 300 | C137: 30042 | D137: 1340 | E137: 275 | F137: 36 | G137: 2 | H137: 350 | I137: 780 | J137: 135 | K137: 1690 | L137: 1340 | M137: 275 | N137: 36 | O137: 2 | P137: 380 | Q137: 795 | R137: 120 | S137: 1815
A138: 44 | B138: 300 | C138: 30044 | D138: 1397 | E138: 285 | F138: 36 | G138: 2 | H138: 355 | I138: 855 | J138: 140 | K138: 1905 | L138: 1397 | M138: 285 | N138: 36 | O138: 2 | P138: 385 | Q138: 880 | R138: 125 | S138: 2120
A139: 46 | B139: 300 | C139: 30046 | D139: 1454 | E139: 300 | F139: 40 | G139: 2 | H139: 360 | I139: 945 | J139: 145 | K139: 2155 | L139: 1454 | M139: 300 | N139: 40 | O139: 2 | P139: 395 | Q139: 965 | R139: 130 | S139: 2295
A140: 48 | B140: 300 | C140: 30048 | D140: 1543 | E140: 310 | F140: 40 | G140: 2 | H140: 375 | I140: 1070 | J140: 155 | K140: 2550 | L140: 1543 | M140: 310 | N140: 40 | O140: 2 | P140: 405 | Q140: 1115 | R140: 140 | S140: 2710
A141: 54 | B141: 300 | C141: 30054 | D141: 1549 | E141: 265 | F141: 28 | G141: 2.25 | H141: 445 | I141: 1060 | J141: 160 | K141: 2835 | L141: 1550 | M141: 265 | N141: 28 | O141: 2.5 | P141: 545 | Q141: 1060 | R141: 155 | S141: 2735
A142: 60 | B142: 300 | C142: 30060 | D142: 1702 | E142: 280 | F142: 32 | G142: 2.25 | H142: 470 | I142: 1300 | J142: 170 | K142: 3645 | L142: 1700 | M142: 280 | N142: 32 | O142: 2.5 | P142: 570 | Q142: 1300 | R142: 165 | S142: 3490
A143: 26 | B143: 600 | C143: 60026 | D143: 914 | E143: 220 | F143: 28 | G143: 1.875 | H143: 340 | I143: 450 | J143: 125 | K143: 810 | L143: 965 | M143: 225 | N143: 28 | O143: 1.875 | P143: 362 | Q143: 470 | R143: 115 | S143: 745
A144: 28 | B144: 600 | C144: 60028 | D144: 965 | E144: 235 | F144: 28 | G144: 2 | H144: 350 | I144: 505 | J144: 135 | K144: 950 | L144: 1022 | M144: 235 | N144: 28 | O144: 2 | P144: 375 | Q144: 540 | R144: 125 | S144: 880
A145: 30 | B145: 600 | C145: 60030 | D145: 1022 | E145: 250 | F145: 28 | G145: 2 | H145: 360 | I145: 575 | J145: 140 | K145: 1245 | L145: 1080 | M145: 250 | N145: 28 | O145: 2 | P145: 381 | Q145: 600 | R145: 130 | S145: 1050
A146: 32 | B146: 600 | C146: 60032 | D146: 1080 | E146: 260 | F146: 28 | G146: 2.25 | H146: 375 | I146: 645 | J146: 150 | K146: 1300 | L146: 1130 | M146: 260 | N146: 28 | O146: 2.25 | P146: 406 | Q146: 685 | R146: 140 | S146: 1225
A147: 34 | B147: 600 | C147: 60034 | D147: 1130 | E147: 270 | F147: 28 | G147: 2.25 | H147: 380 | I147: 705 | J147: 155 | K147: 1480 | L147: 1194 | M147: 270 | N147: 28 | O147: 2.25 | P147: 413 | Q147: 750 | R147: 145 | S147: 1405
A148: 36 | B148: 600 | C148: 60036 | D148: 1194 | E148: 285 | F148: 28 | G148: 2.5 | H148: 400 | I148: 815 | J148: 165 | K148: 1735 | L148: 1250 | M148: 285 | N148: 28 | O148: 2.5 | P148: 432 | Q148: 845 | R148: 155 | S148: 1625
A149: 38 | B149: 600 | C149: 60038 | D149: 1251 | E149: 300 | F149: 28 | G149: 2.5 | H149: 415 | I149: 935 | J149: 170 | K149: 1970 | L149: 1295 | M149: 300 | N149: 28 | O149: 2.5 | P149: 444 | Q149: 960 | R149: 160 | S149: 1870
A150: 40 | B150: 600 | C150: 60040 | D150: 1295 | E150: 315 | F150: 28 | G150: 2.75 | H150: 440 | I150: 1005 | J150: 180 | K150: 2245 | L150: 1365 | M150: 315 | N150: 28 | O150: 2.75 | P150: 470 | Q150: 1045 | R150: 170 | S150: 2085
A151: 42 | B151: 600 | C151: 60042 | D151: 1365 | E151: 325 | F151: 28 | G151: 2.75 | H151: 440 | I151: 1160 | J151: 190 | K151: 2530 | L151: 1422 | M151: 325 | N151: 28 | O151: 2.75 | P151: 470 | Q151: 1190 | R151: 180 | S151: 2410
A152: 44 | B152: 600 | C152: 60044 | D152: 1422 | E152: 335 | F152: 28 | G152: 3 | H152: 470 | I152: 1295 | J152: 195 | K152: 3020 | L152: 1480 | M152: 335 | N152: 28 | O152: 3 | P152: 495 | Q152: 1325 | R152: 185 | S152: 2765
A153: 46 | B153: 600 | C153: 60046 | D153: 1480 | E153: 350 | F153: 28 | G153: 3 | H153: 475 | I153: 1425 | J153: 205 | K153: 3220 | L153: 1537 | M153: 350 | N153: 28 | O153: 3 | P153: 495 | Q153: 1430 | R153: 195 | S153: 3110
A154: 48 | B154: 600 | C154: 60048 | D154: 1537 | E154: 360 | F154: 28 | G154: 3 | H154: 490 | I154: 1545 | J154: 210 | K154: 3540 | L154: 915 | M154: 360 | N154: 28 | O154: 3 | P154: 508 | Q154: 1530 | R154: 200 | S154: 3445
B156: Rating
A158: Return sl no | B158: =B160&C160 -> 60014 | D158: 2 | E158: 3 | F158: 4 | G158: 5 | H158: 6 | I158: 7 | J158: 8 | K158: 9 | L158: 10 | M158: 11 | N158: 12 | O158: 13 | P158: 14 | Q158: 15 | R158: 16 | S158: 17
A159: Search res | D159: =VLOOKUP(B158,C3:D154,2,FALSE) -> 412.8 | E159: =VLOOKUP(B158,C3:E154,3,FALSE) -> 165 | F159: =VLOOKUP(B158,C3:F154,4,FALSE) -> 20 | G159: =VLOOKUP(B158,C3:G154,5,FALSE) ->  | H159: =VLOOKUP(B158,C3:H154,6,FALSE) ->  | I159: =VLOOKUP(B158,C3:I154,7,FALSE) -> 150 | J159: =VLOOKUP(B158,C3:J154,8,FALSE) -> 69.9 | K159: =VLOOKUP(B158,C3:K154,9,FALSE) ->  | L159: =VLOOKUP(B158,C3:L154,10,FALSE) ->  | M159: =VLOOKUP(B158,C3:M154,11,FALSE) ->  | N159: =VLOOKUP(B158,C3:N154,12,FALSE) ->  | O159: =VLOOKUP(B158,C3:O154,13,FALSE) ->  | P159: =VLOOKUP(B158,C3:P154,14,FALSE) ->  | Q159: =VLOOKUP(B158,C3:Q154,15,FALSE) ->  | R159: =VLOOKUP(B158,C3:R154,16,FALSE) ->  | S159: =VLOOKUP(B158,C3:S154,17,FALSE) -> 
A160: Return in calcul | B160: ='General Data'!C39 -> 600 | C160: ='General Data'!B39 -> 14 | D160: =D159 -> 412.8 | E160: 165 | F160: 20 | I160: 150 | J160: 69.9
D161: =ISERROR(D160) -> FALSE | E161: FALSE | F161: FALSE | G161: FALSE | H161: FALSE | I161: FALSE | J161: FALSE | K161: FALSE | L161: FALSE | M161: FALSE | N161: FALSE | O161: FALSE | P161: FALSE | Q161: FALSE | R161: FALSE | S161: FALSE
D162: =IF(D161=TRUE,"….",D160) -> 412.8 | E162: 165 | F162: 20 | I162: 150 | J162: 69.9

Sheet Pipe Data
C1: =C3 -> 5S | D1: =RIGHT(D2,2) ->  | E1: =E3 -> 10S | F1: =RIGHT(F2,2) ->  | G1: =G3 -> 40S | H1: =RIGHT(H2,2) ->  | I1: =I3 -> 80S | J1: =RIGHT(J2,2) ->  | K1: =K3 -> 5 | L1: =RIGHT(L2,2) ->  | M1: =M3 -> 10 | N1: =RIGHT(N2,2) ->  | O1: =O3 -> 20 | P1: =RIGHT(P2,2) ->  | Q1: =Q3 -> 30 | R1: =RIGHT(R2,2) ->  | S1: =S3 -> STD | T1: =RIGHT(T2,2) ->  | U1: =U3 -> 40 | V1: =RIGHT(V2,2) ->  | W1: =W3 -> 60 | X1: =RIGHT(X2,2) ->  | Y1: =Y3 -> XS | Z1: =RIGHT(Z2,2) ->  | AA1: =AA3 -> 80 | AB1: =RIGHT(AB2,2) ->  | AC1: =AC3 -> 100 | AD1: =RIGHT(AD2,2) ->  | AE1: =AE3 -> 120 | AF1: =RIGHT(AF2,2) ->  | AG1: =AG3 -> 140 | AH1: =RIGHT(AH2,2) ->  | AI1: =AI3 -> 160 | AJ1: =RIGHT(AJ2,2) ->  | AK1: =AK3 -> XXS | AL1: =RIGHT(AL2,2) -> 
A2: NPS | B2: OD | C2: S-5S | E2: S-10S | G2: S-40S | I2: S-80S | K2: S-5 | M2: S-10 | O2: S-20 | Q2: S-30 | S2: S-STD | U2: S-40 | W2: S-60 | Y2: S-XS | AA2: S-80 | AC2: S-100 | AE2: S-120 | AG2: S-140 | AI2: S-160 | AK2: S-XXS
C3: =RIGHT(C2,2) -> 5S | E3: =RIGHT(E2,3) -> 10S | G3: =RIGHT(G2,3) -> 40S | I3: =RIGHT(I2,3) -> 80S | K3: =RIGHT(K2,1) -> 5 | M3: =RIGHT(M2,2) -> 10 | O3: =RIGHT(O2,2) -> 20 | Q3: =RIGHT(Q2,2) -> 30 | S3: =RIGHT(S2,3) -> STD | U3: =RIGHT(U2,2) -> 40 | W3: =RIGHT(W2,2) -> 60 | Y3: =RIGHT(Y2,2) -> XS | AA3: =RIGHT(AA2,2) -> 80 | AC3: =RIGHT(AC2,3) -> 100 | AE3: =RIGHT(AE2,3) -> 120 | AG3: =RIGHT(AG2,3) -> 140 | AI3: =RIGHT(AI2,3) -> 160 | AK3: =RIGHT(AK2,3) -> XXS
A4: IN | C4: IN | D4: MM | E4: IN | F4: MM | G4: IN | H4: MM | I4: IN | J4: MM | K4: IN | L4: MM | M4: IN | N4: MM | O4: IN | P4: MM | Q4: IN | R4: MM | S4: IN | T4: MM | U4: IN | V4: MM | W4: IN | X4: MM | Y4: IN | Z4: MM | AA4: IN | AB4: MM | AC4: IN | AD4: MM | AE4: IN | AF4: MM | AG4: IN | AH4: MM | AI4: IN | AJ4: MM | AK4: IN | AL4: MM
A5: 0.5 | B5: 0.84 | C5: 0.065 | D5: =C5*25.4 -> 1.651 | E5: 0.083 | F5: =E5*25.4 -> 2.1082 | G5: 0.109 | H5: =G5*25.4 -> 2.7686 | I5: 0.147 | J5: =I5*25.4 -> 3.7338 | K5: 0.065 | L5: =K5*25.4 -> 1.651 | M5: 0.083 | N5: =M5*25.4 -> 2.1082 | O5: …. | P5: …. | Q5: …. | R5: …. | S5: 0.109 | T5: =S5*25.4 -> 2.7686 | U5: 0.109 | V5: =U5*25.4 -> 2.7686 | W5: …. | X5: …. | Y5: 0.147 | Z5: =Y5*25.4 -> 3.7338 | AA5: 0.147 | AB5: =AA5*25.4 -> 3.7338 | AC5: …. | AD5: …. | AE5: …. | AF5: …. | AG5: …. | AH5: …. | AI5: 0.188 | AJ5: =AI5*25.4 -> 4.7752 | AK5: 0.294 | AL5: =AK5*25.4 -> 7.4676
A6: 0.75 | B6: 1.05 | C6: 0.065 | D6: 1.651 | E6: 0.083 | F6: 2.1082 | G6: 0.113 | H6: 2.8702 | I6: 0.154 | J6: 3.9116 | K6: 0.065 | L6: 1.651 | M6: 0.083 | N6: 2.1082 | O6: …. | P6: …. | Q6: …. | R6: …. | S6: 0.113 | T6: 2.8702 | U6: 0.113 | V6: 2.8702 | W6: …. | X6: …. | Y6: 0.154 | Z6: 3.9116 | AA6: 0.154 | AB6: 3.9116 | AC6: …. | AD6: …. | AE6: …. | AF6: …. | AG6: …. | AH6: …. | AI6: 0.219 | AJ6: 5.5626 | AK6: 0.308 | AL6: 7.8232
A7: 1 | B7: 1.315 | C7: 0.065 | D7: 1.651 | E7: 0.109 | F7: 2.7686 | G7: 0.133 | H7: 3.3782 | I7: 0.179 | J7: 4.5466 | K7: 0.065 | L7: 1.651 | M7: 0.109 | N7: 2.7686 | O7: …. | P7: …. | Q7: …. | R7: …. | S7: 0.133 | T7: 3.3782 | U7: 0.133 | V7: 3.3782 | W7: …. | X7: …. | Y7: 0.179 | Z7: 4.5466 | AA7: 0.179 | AB7: 4.5466 | AC7: …. | AD7: …. | AE7: …. | AF7: …. | AG7: …. | AH7: …. | AI7: 0.25 | AJ7: 6.35 | AK7: 0.358 | AL7: 9.0932
A8: 1.25 | C8: …. | D8: …. | E8: …. | F8: …. | G8: …. | H8: …. | I8: …. | J8: …. | K8: …. | L8: …. | M8: …. | N8: …. | O8: …. | P8: …. | Q8: …. | R8: …. | S8: …. | T8: …. | U8: …. | V8: …. | W8: …. | X8: …. | Y8: …. | Z8: …. | AA8: …. | AB8: …. | AC8: …. | AD8: …. | AE8: …. | AF8: …. | AG8: …. | AH8: …. | AI8: …. | AJ8: …. | AK8: …. | AL8: ….
A9: 1.5 | B9: 1.9 | C9: 0.065 | D9: =C9*25.4 -> 1.651 | E9: 0.109 | F9: =E9*25.4 -> 2.7686 | G9: 0.145 | H9: =G9*25.4 -> 3.683 | I9: 0.2 | J9: =I9*25.4 -> 5.08 | K9: 0.065 | L9: =K9*25.4 -> 1.651 | M9: 0.109 | N9: =M9*25.4 -> 2.7686 | O9: …. | P9: …. | Q9: …. | R9: …. | S9: 0.145 | T9: =S9*25.4 -> 3.683 | U9: 0.145 | V9: =U9*25.4 -> 3.683 | W9: …. | X9: …. | Y9: 0.2 | Z9: =Y9*25.4 -> 5.08 | AA9: 0.2 | AB9: =AA9*25.4 -> 5.08 | AC9: …. | AD9: …. | AE9: …. | AF9: …. | AG9: …. | AH9: …. | AI9: 0.281 | AJ9: =AI9*25.4 -> 7.1374 | AK9: 0.4 | AL9: =AK9*25.4 -> 10.16
A10: 2 | B10: 2.375 | C10: 0.065 | D10: 1.651 | E10: 0.109 | F10: 2.7686 | G10: 0.154 | H10: 3.9116 | I10: 0.218 | J10: 5.5372 | K10: 0.065 | L10: 1.651 | M10: 0.109 | N10: 2.7686 | O10: …. | P10: …. | Q10: …. | R10: …. | S10: 0.154 | T10: 3.9116 | U10: 0.154 | V10: 3.9116 | W10: …. | X10: …. | Y10: 0.218 | Z10: 5.5372 | AA10: 0.218 | AB10: 5.5372 | AC10: …. | AD10: …. | AE10: …. | AF10: …. | AG10: …. | AH10: …. | AI10: 0.344 | AJ10: 8.7376 | AK10: 0.436 | AL10: 11.0744
A11: 2.5 | B11: 2.875 | C11: 0.083 | D11: 2.1082 | E11: 0.12 | F11: 3.048 | G11: 0.203 | H11: 5.1562 | I11: 0.276 | J11: 7.0104 | K11: 0.083 | L11: 2.1082 | M11: 0.12 | N11: 3.048 | O11: …. | P11: …. | Q11: …. | R11: …. | S11: 0.203 | T11: 5.1562 | U11: 0.203 | V11: 5.1562 | W11: …. | X11: …. | Y11: 0.276 | Z11: 7.0104 | AA11: 0.276 | AB11: 7.0104 | AC11: …. | AD11: …. | AE11: …. | AF11: …. | AG11: …. | AH11: …. | AI11: 0.375 | AJ11: 9.525 | AK11: 0.552 | AL11: 14.0208
A12: 3 | B12: 3.5 | C12: 0.083 | D12: 2.1082 | E12: 0.12 | F12: 3.048 | G12: 0.216 | H12: 5.4864 | I12: 0.3 | J12: 7.62 | K12: 0.083 | L12: 2.1082 | M12: 0.12 | N12: 3.048 | O12: …. | P12: …. | Q12: …. | R12: …. | S12: 0.216 | T12: 5.4864 | U12: 0.216 | V12: 5.4864 | W12: …. | X12: …. | Y12: 0.3 | Z12: 7.62 | AA12: 0.3 | AB12: 7.62 | AC12: …. | AD12: …. | AE12: …. | AF12: …. | AG12: …. | AH12: …. | AI12: 0.438 | AJ12: 11.1252 | AK12: 0.6 | AL12: 15.24
A13: 3.5 | C13: …. | D13: …. | E13: …. | F13: …. | G13: …. | H13: …. | I13: …. | J13: …. | K13: …. | L13: …. | M13: …. | N13: …. | O13: …. | P13: …. | Q13: …. | R13: …. | S13: …. | T13: …. | U13: …. | V13: …. | W13: …. | X13: …. | Y13: …. | Z13: …. | AA13: …. | AB13: …. | AC13: …. | AD13: …. | AE13: …. | AF13: …. | AG13: …. | AH13: …. | AI13: …. | AJ13: …. | AK13: …. | AL13: ….
A14: 4 | B14: 4.5 | C14: 0.083 | D14: =C14*25.4 -> 2.1082 | E14: 0.12 | F14: =E14*25.4 -> 3.048 | G14: 0.237 | H14: =G14*25.4 -> 6.0198 | I14: 0.337 | J14: =I14*25.4 -> 8.5598 | K14: 0.083 | L14: =K14*25.4 -> 2.1082 | M14: 0.12 | N14: =M14*25.4 -> 3.048 | O14: …. | P14: …. | Q14: …. | R14: …. | S14: 0.237 | T14: =S14*25.4 -> 6.0198 | U14: 0.237 | V14: =U14*25.4 -> 6.0198 | W14: …. | X14: …. | Y14: 0.337 | Z14: =Y14*25.4 -> 8.5598 | AA14: 0.337 | AB14: =AA14*25.4 -> 8.5598 | AC14: …. | AD14: …. | AE14: 0.438 | AF14: =AE14*25.4 -> 11.1252 | AG14: …. | AH14: …. | AI14: 0.531 | AJ14: =AI14*25.4 -> 13.4874 | AK14: 0.674 | AL14: =AK14*25.4 -> 17.1196
A15: 5 | C15: …. | D15: …. | E15: …. | F15: …. | G15: …. | H15: …. | I15: …. | J15: …. | K15: …. | L15: …. | M15: …. | N15: …. | O15: …. | P15: …. | Q15: …. | R15: …. | S15: …. | T15: …. | U15: …. | V15: …. | W15: …. | X15: …. | Y15: …. | Z15: …. | AA15: …. | AB15: …. | AC15: …. | AD15: …. | AE15: …. | AF15: …. | AG15: …. | AH15: …. | AI15: …. | AJ15: …. | AK15: …. | AL15: ….
A16: 6 | B16: 6.625 | C16: 0.109 | D16: =C16*25.4 -> 2.7686 | E16: 0.134 | F16: =E16*25.4 -> 3.4036 | G16: 0.28 | H16: =G16*25.4 -> 7.112 | I16: 0.432 | J16: =I16*25.4 -> 10.9728 | K16: 0.109 | L16: =K16*25.4 -> 2.7686 | M16: 0.134 | N16: =M16*25.4 -> 3.4036 | O16: …. | P16: …. | Q16: …. | R16: …. | S16: 0.28 | T16: =S16*25.4 -> 7.112 | U16: 0.28 | V16: =U16*25.4 -> 7.112 | W16: …. | X16: …. | Y16: 0.432 | Z16: =Y16*25.4 -> 10.9728 | AA16: 0.432 | AB16: =AA16*25.4 -> 10.9728 | AC16: …. | AD16: …. | AE16: 0.562 | AF16: =AE16*25.4 -> 14.2748 | AG16: …. | AH16: …. | AI16: 0.719 | AJ16: =AI16*25.4 -> 18.2626 | AK16: 0.864 | AL16: =AK16*25.4 -> 21.9456
A17: 8 | B17: 8.625 | C17: 0.109 | D17: 2.7686 | E17: 0.148 | F17: 3.7592 | G17: 0.322 | H17: 8.1788 | I17: 0.5 | J17: 12.7 | K17: 0.109 | L17: 2.7686 | M17: 0.148 | N17: 3.7592 | O17: 0.25 | P17: =O17*25.4 -> 6.35 | Q17: 0.277 | R17: =Q17*25.4 -> 7.0358 | S17: 0.322 | T17: 8.1788 | U17: 0.322 | V17: 8.1788 | W17: 0.406 | X17: =W17*25.4 -> 10.3124 | Y17: 0.5 | Z17: 12.7 | AA17: 0.5 | AB17: 12.7 | AC17: 0.594 | AD17: =AC17*25.4 -> 15.0876 | AE17: 0.719 | AF17: 18.2626 | AG17: 0.812 | AH17: =AG17*25.4 -> 20.6248 | AI17: 0.906 | AJ17: 23.0124 | AK17: 0.875 | AL17: 22.225
A18: 10 | B18: 10.75 | C18: 0.134 | D18: 3.4036 | E18: 0.165 | F18: 4.191 | G18: 0.365 | H18: 9.271 | I18: …. | J18: …. | K18: 0.134 | L18: 3.4036 | M18: 0.165 | N18: 4.191 | O18: 0.25 | P18: 6.35 | Q18: 0.307 | R18: 7.7978 | S18: 0.365 | T18: 9.271 | U18: 0.365 | V18: 9.271 | W18: …. | X18: …. | Y18: 0.5 | Z18: 12.7 | AA18: 0.594 | AB18: 15.0876 | AC18: 0.719 | AD18: 18.2626 | AE18: 0.844 | AF18: 21.4376 | AG18: 1 | AH18: 25.4 | AI18: 1.125 | AJ18: 28.575 | AK18: …. | AL18: ….
A19: 12 | B19: 12.75 | C19: 0.156 | D19: 3.9624 | E19: 0.18 | F19: 4.572 | G19: …. | H19: …. | I19: …. | J19: …. | K19: 0.156 | L19: 3.9624 | M19: 0.18 | N19: 4.572 | O19: 0.25 | P19: 6.35 | Q19: 0.33 | R19: 8.382 | S19: 0.375 | T19: 9.525 | U19: 0.406 | V19: 10.3124 | W19: 0.562 | X19: =W19*25.4 -> 14.2748 | Y19: 0.5 | Z19: 12.7 | AA19: 0.688 | AB19: 17.4752 | AC19: 0.844 | AD19: 21.4376 | AE19: 1 | AF19: 25.4 | AG19: 1.125 | AH19: 28.575 | AI19: 1.312 | AJ19: 33.3248 | AK19: …. | AL19: ….
A20: 14 | B20: 14 | C20: 0.156 | D20: 3.9624 | E20: …. | F20: …. | G20: …. | H20: …. | I20: …. | J20: …. | K20: …. | L20: …. | M20: 0.25 | N20: 6.35 | O20: 0.312 | P20: 7.9248 | Q20: …. | R20: …. | S20: 0.375 | T20: 9.525 | U20: 0.438 | V20: 11.1252 | W20: 0.594 | X20: 15.0876 | Y20: 0.5 | Z20: 12.7 | AA20: 0.75 | AB20: 19.05 | AC20: 0.938 | AD20: 23.8252 | AE20: 1.094 | AF20: 27.7876 | AG20: 1.125 | AH20: 28.575 | AI20: 1.406 | AJ20: 35.7124 | AK20: …. | AL20: ….
A21: 16 | B21: 16 | C21: 0.165 | D21: 4.191 | E21: …. | F21: …. | G21: …. | H21: …. | I21: …. | J21: …. | K21: …. | L21: …. | M21: 0.25 | N21: 6.35 | O21: 0.312 | P21: 7.9248 | Q21: …. | R21: …. | S21: 0.375 | T21: 9.525 | U21: …. | V21: …. | W21: 0.656 | X21: 16.6624 | Y21: 0.5 | Z21: 12.7 | AA21: 0.844 | AB21: 21.4376 | AC21: 1.031 | AD21: 26.1874 | AE21: 1.219 | AF21: 30.9626 | AG21: 1.438 | AH21: 36.5252 | AI21: 1.594 | AJ21: 40.4876 | AK21: …. | AL21: ….
A22: 18 | B22: 18 | C22: 0.165 | D22: 4.191 | E22: …. | F22: …. | G22: …. | H22: …. | I22: …. | J22: …. | K22: …. | L22: …. | M22: 0.25 | N22: 6.35 | O22: 0.312 | P22: 7.9248 | Q22: 0.438 | R22: =Q22*25.4 -> 11.1252 | S22: 0.375 | T22: 9.525 | U22: 0.562 | V22: =U22*25.4 -> 14.2748 | W22: 0.75 | X22: 19.05 | Y22: 0.5 | Z22: 12.7 | AA22: 0.938 | AB22: 23.8252 | AC22: 1.156 | AD22: 29.3624 | AE22: 1.375 | AF22: 34.925 | AG22: 1.562 | AH22: 39.6748 | AI22: 1.781 | AJ22: 45.2374 | AK22: …. | AL22: ….
A23: 20 | B23: 20 | C23: 0.188 | D23: 4.7752 | E23: …. | F23: …. | G23: …. | H23: …. | I23: …. | J23: …. | K23: …. | L23: …. | M23: 0.25 | N23: 6.35 | O23: 0.375 | P23: 9.525 | Q23: …. | R23: …. | S23: 0.375 | T23: 9.525 | U23: 0.594 | V23: 15.0876 | W23: 0.812 | X23: 20.6248 | Y23: 0.5 | Z23: 12.7 | AA23: 1.031 | AB23: 26.1874 | AC23: 1.281 | AD23: 32.5374 | AE23: 1.5 | AF23: 38.1 | AG23: 1.75 | AH23: 44.45 | AI23: 1.969 | AJ23: 50.0126 | AK23: …. | AL23: ….
A24: 22 | B24: 22 | C24: 0.188 | D24: 4.7752 | E24: …. | F24: …. | G24: …. | H24: …. | I24: …. | J24: …. | K24: …. | L24: …. | M24: 0.25 | N24: 6.35 | O24: …. | P24: …. | Q24: …. | R24: …. | S24: 0.375 | T24: 9.525 | U24: …. | V24: …. | W24: 0.875 | X24: 22.225 | Y24: 0.5 | Z24: 12.7 | AA24: 1.125 | AB24: 28.575 | AC24: 1.375 | AD24: 34.925 | AE24: 1.625 | AF24: 41.275 | AG24: 1.875 | AH24: 47.625 | AI24: 2.125 | AJ24: 53.975 | AK24: …. | AL24: ….
A25: 24 | B25: 24 | C25: 0.218 | D25: 5.5372 | E25: 0.25 | F25: =E25*25.4 -> 6.35 | G25: …. | H25: …. | I25: …. | J25: …. | K25: …. | L25: …. | M25: 0.25 | N25: 6.35 | O25: 0.375 | P25: =O25*25.4 -> 9.525 | Q25: 0.562 | R25: =Q25*25.4 -> 14.2748 | S25: 0.375 | T25: 9.525 | U25: 0.688 | V25: =U25*25.4 -> 17.4752 | W25: 0.969 | X25: 24.6126 | Y25: 0.5 | Z25: 12.7 | AA25: 1.219 | AB25: 30.9626 | AC25: 1.531 | AD25: 38.8874 | AE25: 1.812 | AF25: 46.0248 | AG25: 2.062 | AH25: 52.3748 | AI25: 2.343 | AJ25: 59.5122 | AK25: …. | AL25: ….
A26: 26 | B26: 26 | C26: 0.25 | D26: 6.35 | E26: 0.312 | F26: 7.9248 | G26: …. | H26: …. | I26: …. | J26: …. | K26: …. | L26: …. | M26: 0.312 | N26: 7.9248 | O26: 0.5 | P26: 12.7 | Q26: …. | R26: …. | S26: 0.375 | T26: 9.525 | U26: …. | V26: …. | W26: …. | X26: …. | Y26: 0.5 | Z26: 12.7 | AA26: …. | AB26: …. | AC26: …. | AD26: …. | AE26: …. | AF26: …. | AG26: …. | AH26: …. | AI26: …. | AJ26: …. | AK26: …. | AL26: ….
A27: 28 | B27: 28 | C27: …. | D27: …. | E27: …. | F27: …. | G27: …. | H27: …. | I27: …. | J27: …. | K27: …. | L27: …. | M27: 0.312 | N27: 7.9248 | O27: 0.5 | P27: 12.7 | Q27: 0.625 | R27: =Q27*25.4 -> 15.875 | S27: 0.375 | T27: 9.525 | U27: …. | V27: …. | W27: …. | X27: …. | Y27: 0.5 | Z27: 12.7 | AA27: …. | AB27: …. | AC27: …. | AD27: …. | AE27: …. | AF27: …. | AG27: …. | AH27: …. | AI27: …. | AJ27: …. | AK27: …. | AL27: ….
A28: 30 | B28: 30 | C28: 0.25 | D28: …. | E28: …. | F28: …. | G28: …. | H28: …. | I28: …. | J28: …. | K28: …. | L28: …. | M28: 0.312 | N28: 7.9248 | O28: 0.5 | P28: 12.7 | Q28: 0.625 | R28: 15.875 | S28: 0.375 | T28: 9.525 | U28: …. | V28: …. | W28: …. | X28: …. | Y28: 0.5 | Z28: 12.7 | AA28: …. | AB28: …. | AC28: …. | AD28: …. | AE28: …. | AF28: …. | AG28: …. | AH28: …. | AI28: …. | AJ28: …. | AK28: …. | AL28: ….
A29: 32 | C29: …. | D29: …. | E29: …. | F29: …. | G29: …. | H29: …. | I29: …. | J29: …. | K29: …. | L29: …. | M29: …. | N29: …. | O29: …. | P29: …. | Q29: …. | R29: …. | S29: …. | T29: …. | U29: …. | V29: …. | W29: …. | X29: …. | Y29: …. | Z29: …. | AA29: …. | AB29: …. | AC29: …. | AD29: …. | AE29: …. | AF29: …. | AG29: …. | AH29: …. | AI29: …. | AJ29: …. | AK29: …. | AL29: ….
A30: 34 | C30: …. | D30: …. | E30: …. | F30: …. | G30: …. | H30: …. | I30: …. | J30: …. | K30: …. | L30: …. | M30: …. | N30: …. | O30: …. | P30: …. | Q30: …. | R30: …. | S30: …. | T30: …. | U30: …. | V30: …. | W30: …. | X30: …. | Y30: …. | Z30: …. | AA30: …. | AB30: …. | AC30: …. | AD30: …. | AE30: …. | AF30: …. | AG30: …. | AH30: …. | AI30: …. | AJ30: …. | AK30: …. | AL30: ….
A31: 36 | B31: 36 | C31: 0.25 | D31: …. | E31: …. | F31: …. | G31: …. | H31: …. | I31: …. | J31: …. | K31: …. | L31: …. | M31: 0.312 | N31: =M31*25.4 -> 7.9248 | O31: 0.5 | P31: =O31*25.4 -> 12.7 | Q31: 0.625 | R31: =Q31*25.4 -> 15.875 | S31: 0.375 | T31: =S31*25.4 -> 9.525 | U31: 0.5 | V31: =U31*25.4 -> 12.7 | W31: …. | X31: …. | Y31: 0.5 | Z31: =Y31*25.4 -> 12.7 | AA31: …. | AB31: …. | AC31: …. | AD31: …. | AE31: …. | AF31: …. | AG31: …. | AH31: …. | AI31: …. | AJ31: …. | AK31: …. | AL31: ….
A32: 38 | B32: 38 | C32: …. | D32: …. | E32: …. | F32: …. | G32: …. | H32: …. | I32: …. | J32: …. | K32: …. | L32: …. | M32: …. | N32: …. | O32: …. | P32: …. | Q32: …. | R32: …. | S32: …. | T32: …. | U32: …. | V32: …. | W32: …. | X32: …. | Y32: …. | Z32: …. | AA32: …. | AB32: …. | AC32: …. | AD32: …. | AE32: …. | AF32: …. | AG32: …. | AH32: …. | AI32: …. | AJ32: …. | AK32: …. | AL32: ….
A33: 40 | B33: 40 | C33: …. | D33: …. | E33: …. | F33: …. | G33: …. | H33: …. | I33: …. | J33: …. | K33: …. | L33: …. | M33: …. | N33: …. | O33: …. | P33: …. | Q33: …. | R33: …. | S33: 0.375 | T33: =S33*25.4 -> 9.525 | U33: …. | V33: …. | W33: …. | X33: …. | Y33: 0.5 | Z33: =Y33*25.4 -> 12.7 | AA33: …. | AB33: …. | AC33: …. | AD33: …. | AE33: …. | AF33: …. | AG33: …. | AH33: …. | AI33: …. | AJ33: …. | AK33: …. | AL33: ….
A34: 42 | B34: 42 | C34: …. | D34: …. | E34: …. | F34: …. | G34: …. | H34: …. | I34: …. | J34: …. | K34: …. | L34: …. | M34: …. | N34: …. | O34: …. | P34: …. | Q34: …. | R34: …. | S34: 0.375 | T34: 9.525 | U34: 0.5 | V34: =U34*25.4 -> 12.7 | W34: …. | X34: …. | Y34: 0.5 | Z34: 12.7 | AA34: …. | AB34: …. | AC34: …. | AD34: …. | AE34: …. | AF34: …. | AG34: …. | AH34: …. | AI34: …. | AJ34: …. | AK34: …. | AL34: ….
A35: 44 | C35: …. | D35: …. | E35: …. | F35: …. | G35: …. | H35: …. | I35: …. | J35: …. | K35: …. | L35: …. | M35: …. | N35: …. | O35: …. | P35: …. | Q35: …. | R35: …. | S35: …. | T35: …. | U35: …. | V35: …. | W35: …. | X35: …. | Y35: …. | Z35: …. | AA35: …. | AB35: …. | AC35: …. | AD35: …. | AE35: …. | AF35: …. | AG35: …. | AH35: …. | AI35: …. | AJ35: …. | AK35: …. | AL35: ….
A36: 46 | C36: …. | D36: …. | E36: …. | F36: …. | G36: …. | H36: …. | I36: …. | J36: …. | K36: …. | L36: …. | M36: …. | N36: …. | O36: …. | P36: …. | Q36: …. | R36: …. | S36: …. | T36: …. | U36: …. | V36: …. | W36: …. | X36: …. | Y36: …. | Z36: …. | AA36: …. | AB36: …. | AC36: …. | AD36: …. | AE36: …. | AF36: …. | AG36: …. | AH36: …. | AI36: …. | AJ36: …. | AK36: …. | AL36: ….
A37: 48 | B37: 48 | C37: …. | D37: …. | E37: …. | F37: …. | G37: …. | H37: …. | I37: …. | J37: …. | K37: …. | L37: …. | M37: …. | N37: …. | O37: …. | P37: …. | Q37: …. | R37: …. | S37: 0.375 | T37: =S37*25.4 -> 9.525 | U37: …. | V37: …. | W37: …. | X37: …. | Y37: 0.5 | Z37: =Y37*25.4 -> 12.7 | AA37: …. | AB37: …. | AC37: …. | AD37: …. | AE37: …. | AF37: …. | AG37: …. | AH37: …. | AI37: …. | AJ37: …. | AK37: …. | AL37: ….
D40: 5S | F40: 10S | H40: 40S | J40: 80S | L40: 5 | N40: 10 | P40: 20 | R40: 30 | T40: STD | V40: 40 | X40: 60 | Z40: XS | AB40: 80 | AD40: 100 | AF40: 120 | AH40: 140 | AJ40: 160 | AL40: XXS
A42: 1 | B42: 2 | C42: 3 | D42: 4 | E42: 5 | F42: 6 | G42: 7 | H42: 8 | I42: 9 | J42: 10 | K42: 11 | L42: 12 | M42: 13 | N42: 14 | O42: 15 | P42: 16 | Q42: 17 | R42: 18 | S42: 19 | T42: 20 | U42: 21 | V42: 22 | W42: 23 | X42: 24 | Y42: 25 | Z42: 26 | AA42: 27 | AB42: 28 | AC42: 29 | AD42: 30 | AE42: 31 | AF42: 32 | AG42: 33 | AH42: 34 | AI42: 35 | AJ42: 36 | AK42: 37 | AL42: 38
A43: BF | B43: ='General Data'!B39 -> 14 | D43: =VLOOKUP(B43,A5:D37,4,FALSE) -> 3.9624 | F43: =VLOOKUP(B43,A5:F37,6,FALSE) -> …. | H43: =VLOOKUP(B43,A5:H37,8,FALSE) -> …. | J43: =VLOOKUP(B43,A5:J37,10,FALSE) -> …. | L43: =VLOOKUP(B43,A5:L37,12,FALSE) -> …. | N43: =VLOOKUP(B43,A5:N37,14,FALSE) -> 6.35 | P43: =VLOOKUP(B43,A5:P37,16,FALSE) -> 7.9248 | R43: =VLOOKUP(B43,A5:R37,18,FALSE) -> …. | T43: =VLOOKUP(B43,A5:T37,20,FALSE) -> 9.525 | V43: =VLOOKUP(B43,A5:AL37,22,FALSE) -> 11.1252 | X43: =VLOOKUP(B43,A5:AL37,24,FALSE) -> 15.0876 | Z43: =VLOOKUP(B43,A5:AL37,26,FALSE) -> 12.7 | AB43: =VLOOKUP(B43,A5:AL37,28,FALSE) -> 19.05 | AD43: =VLOOKUP(B43,A5:AL37,30,FALSE) -> 23.8252 | AF43: =VLOOKUP(B43,A5:AL37,32,FALSE) -> 27.7876 | AH43: =VLOOKUP(B43,A5:AL37,34,FALSE) -> 28.575 | AJ43: =VLOOKUP(B43,A5:AL37,36,FALSE) -> 35.7124 | AL43: =VLOOKUP(B43,A5:AL37,38,FALSE) -> ….
A45: SCH | B45: ='General Data'!D39 -> 80
A47: return | B47: =HLOOKUP(B45,D40:AL43,4,FALSE) -> 19.05
